Workbook

Sheet 1ОиДинфоб (2)
D1: Показатель 1.1 | J1: Показатель 1.2 | M1: Показатель 1.3
D2: Показатель 1.1.1 | F2: Покзатель 1.1.2 | M2: Показатель 1.3.1
B3: № | C3: ДО | D3: 1.1.1. Объем информации, размещенной на информационных стендах в помещении организации | F3: 1.1.2. Объем информации, размещенной на официальном сайте организации | H3: Значение показателя 1.1 | I3: Значение показателя 1.1 с учетом значимости | J3: Количество функционирующих дистанционных способов взаимодействия | K3: Значение показателя 1.2 | L3: Значение показателя 1.2 с учетом значимости | M3: Число получателей услуг, удовлетворенных качеством, полнотой и доступностью информации о деятельности организации, размещенной на стендах организации | N3: Число опрошенных получателей услуг, ответивших на соответствующий вопрос анкеты | O3: Число получателей услуг, удовлетворенных качеством, полнотой и доступностью информации о деятельности организации, размещенной на сайте организации | P3: Число опрошенных получателей услуг, ответивших на соответствующий вопрос анкеты | Q3: Значение показателя 1.3 | R3: Значение показателя 1 .3 с учетом веса | S3: Итого по критерию:
H4: 100 | I4: 30 | K4: 100 | L4: 30 | Q4: 100 | R4: 40 | S4: =I4+L4+R4 -> 100
A5: 1 | B5: г. Алейск | C5: МБУДО «Центр детского творчества» (г. Алейск) | D5: 7 | E5: 9 | F5: 29.5 | G5: 34 | H5: =0.5*(D5/E5+F5/G5)*100 -> 82.27124183 | I5: =H5*0.3 -> 24.68137255 | J5: 6 | K5: =IF(J5<=3,J5*30,100) -> 100 | L5: =K5*0.3 -> 30 | M5: 582 | N5: 586 | O5: 529 | P5: 531 | Q5: =0.5*(M5/N5+O5/P5)*100 -> 99.47037915 | R5: =Q5*0.4 -> 39.78815166 | S5: =I5+L5+R5 -> 94.46952421
A6: 2 | B6: Алтайский район | C6: МАОУДО «Алтайский районный детско-юношеский центр» | D6: 8 | E6: 9 | F6: 34 | G6: 35 | H6: =0.5*(D6/E6+F6/G6)*100 -> 93.01587302 | I6: =H6*0.3 -> 27.9047619 | J6: 4 | K6: =IF(J6<=3,J6*30,100) -> 100 | L6: =K6*0.3 -> 30 | M6: 498 | N6: 499 | O6: 435 | P6: 439 | Q6: =0.5*(M6/N6+O6/P6)*100 -> 99.44421873 | R6: =Q6*0.4 -> 39.77768749 | S6: 97.6824494
A7: 3 | B7: Баевский район | C7: МБУДО «Баевский Центр детского творчества и профессионального обучения Алтайского края» | D7: 9 | E7: 9 | F7: 32.5 | G7: 34 | H7: 97.79411765 | I7: 29.33823529 | J7: 4 | K7: 100 | L7: 30 | M7: 145 | N7: 145 | O7: 143 | P7: 143 | Q7: 100 | R7: 40 | S7: 99.33823529
A8: 4 | B8: г. Барнаул | C8: КГБУДО «Алтайский краевой дворец творчества детей и молодежи» | D8: 8 | E8: 9 | F8: 33 | G8: 36 | H8: 90.27777778 | I8: 27.08333333 | J8: 3 | K8: 90 | L8: 27 | M8: 417 | N8: 430 | O8: 355 | P8: 362 | Q8: 97.52152126 | R8: 39.00860851 | S8: 93.09194184
A9: 5 | B9: г. Барнаул | C9: КГБУДО «Алтайский краевой детский экологический центр» | D9: 9 | E9: 9 | F9: 35 | G9: 36 | H9: 98.61111111 | I9: 29.58333333 | J9: 5 | K9: 100 | L9: 30 | M9: 488 | N9: 490 | O9: 521 | P9: 521 | Q9: 99.79591837 | R9: 39.91836735 | S9: 99.50170068
A10: 6 | B10: г. Барнаул | C10: КГБУДО «Алтайский краевой центр детского отдыха, туризма и краеведения «Алтай» | D10: 8.5 | E10: 9 | F10: 34 | G10: 36 | H10: 94.44444444 | I10: 28.33333333 | J10: 6 | K10: 100 | L10: =K10*0.3 -> 30 | M10: 240 | N10: 241 | O10: 241 | P10: 252 | Q10: 97.60999144 | R10: 39.04399658 | S10: 97.37732991
A11: 7 | B11: г. Барнаул | C11: КГБУДО «Детский технопарк Алтайского края «Кванториум.22» | D11: 11 | E11: 11 | F11: 38 | G11: 38 | H11: 100 | I11: 30 | J11: 4 | K11: 100 | L11: =K11*0.3 -> 30 | M11: 700 | N11: 701 | O11: 718 | P11: 723 | Q11: 99.58289186 | R11: 39.83315674 | S11: 99.83315674
A12: 8 | B12: г. Барнаул | C12: МБУДО «Барнаульский городской детско-юношеский центр» | D12: 10 | E12: 11 | F12: 35 | G12: 36 | H12: 94.06565657 | I12: 28.21969697 | J12: 5 | K12: 100 | L12: 30 | M12: 610 | N12: 615 | O12: 568 | P12: 575 | Q12: 98.98480028 | R12: 39.59392011 | S12: 97.81361708
A13: 9 | B13: г. Барнаул | C13: МБУДО «Барнаульская городская станция юных натуралистов» | D13: 10 | E13: 11 | F13: 35 | G13: 37 | H13: 92.75184275 | I13: 27.82555283 | J13: 4 | K13: 100 | L13: 30 | M13: 172 | N13: 176 | O13: 152 | P13: 155 | Q13: 97.89589443 | R13: 39.15835777 | S13: 96.9839106
A14: 10 | B14: г. Барнаул | C14: МБУДО «Барнаульская городская станция юных техников» | D14: 7.5 | E14: 9 | F14: 35.5 | G14: 36 | H14: 90.97222222 | I14: 27.29166667 | J14: 6 | K14: 100 | L14: 30 | M14: 548 | N14: 548 | O14: 497 | P14: 501 | Q14: 99.6007984 | R14: 39.84031936 | S14: 97.13198603
A15: 11 | B15: г. Барнаул | C15: МБУДО «Детский оздоровительно-образовательный (профильный) центр Гармония» | D15: 7.5 | E15: 9 | F15: 32 | G15: 33 | H15: 90.15151515 | I15: 27.04545455 | J15: 3 | K15: 90 | L15: 27 | M15: 54 | N15: 54 | O15: 51 | P15: 51 | Q15: 100 | R15: 40 | S15: 94.04545455
A16: 12 | B16: г. Барнаул | C16: МБУДО «Дом художественного творчества детей» (г. Барнаул) | D16: 11 | E16: 11 | F16: 36 | G16: 38 | H16: 97.36842105 | I16: 29.21052632 | J16: 4 | K16: 100 | L16: 30 | M16: 542 | N16: 547 | O16: 531 | P16: 536 | Q16: 99.0765437 | R16: 39.63061748 | S16: 98.8411438
A17: 13 | B17: г. Барнаул | C17: МБУДО «Детско-юношеский центр» Индустриального района г. Барнау | D17: 10 | E17: 11 | F17: 35.5 | G17: 37 | H17: 93.42751843 | I17: 28.02825553 | J17: 5 | K17: 100 | L17: 30 | M17: 667 | N17: 670 | O17: 403 | P17: 410 | Q17: 98.92246087 | R17: 39.56898435 | S17: 97.59723987
A18: 14 | B18: г. Барнаул | C18: МБУДО «Центр детского (юношеского) технического творчества» Лени | D18: 9 | E18: 9 | F18: 5 | G18: 32 | H18: 57.8125 | I18: 17.34375 | J18: 3 | K18: 90 | L18: 27 | M18: 97 | N18: 97 | O18: 88 | P18: 90 | Q18: 98.88888889 | R18: 39.55555556 | S18: 83.89930556
A19: 15 | B19: г. Барнаул | C19: МБУДО «Центр детского творчества №2» г. Барнаула | D19: 9 | E19: 9 | F19: 34 | G19: 35 | H19: 98.57142857 | I19: 29.57142857 | J19: 4 | K19: 100 | L19: 30 | M19: 442 | N19: 448 | O19: 358 | P19: 364 | Q19: 98.50618132 | R19: 39.40247253 | S19: 98.9739011
A20: 16 | B20: г. Барнаул | C20: МБУДО «Центр детского творчества» Центрального района г. Барнаула | D20: 11 | E20: 11 | F20: 30.5 | G20: 37 | H20: 91.21621622 | I20: 27.36486486 | J20: 3 | K20: 90 | L20: 27 | M20: 195 | N20: 198 | O20: 174 | P20: 176 | Q20: 98.67424242 | R20: 39.46969697 | S20: 93.83456183
A21: 17 | B21: г. Барнаул | C21: МБУДО «Центр развития творчества детей и юношества» Индустриаль | D21: 10 | E21: 11 | F21: 32 | G21: 38 | H21: 87.55980861 | I21: 26.26794258 | J21: 4 | K21: 100 | L21: 30 | M21: 578 | N21: 581 | O21: 510 | P21: 511 | Q21: 99.64397708 | R21: 39.85759083 | S21: 96.12553342
A22: 18 | B22: г. Барнаул | C22: МБУДО «Центр развития творчества детей и молодежи» Железнодорож | D22: 10 | E22: 11 | F22: 30.5 | G22: 36 | H22: 87.81565657 | I22: 26.34469697 | J22: 4 | K22: 100 | L22: 30 | M22: 535 | N22: 542 | O22: 459 | P22: 469 | Q22: 98.28814546 | R22: 39.31525818 | S22: 95.65995515
A23: 19 | B23: г. Барнаул | C23: МБУДО «Центр физкультурно-спортивной направленности «Акцент» | D23: 9.5 | E23: 11 | F23: 31 | G23: 37 | H23: 85.07371007 | I23: 25.52211302 | J23: 3 | K23: 90 | L23: 27 | M23: 108 | N23: 108 | O23: 70 | P23: 71 | Q23: 99.29577465 | R23: 39.71830986 | S23: 92.24042288
A24: 20 | B24: г. Барнаул | C24: МБУДО Городской психолого-педагогический центр «Потенциал» | D24: 11 | E24: 11 | F24: 37 | G24: 37 | H24: 100 | I24: 30 | J24: 2 | K24: 60 | L24: 18 | M24: 655 | N24: 655 | O24: 631 | P24: 636 | Q24: 99.60691824 | R24: 39.8427673 | S24: 87.8427673
A25: 21 | B25: г. Барнаул | C25: МБУДО Детский оздоровительно-образовательный (профильный) центр «Валеологический центр» | D25: 11 | E25: 11 | F25: 35 | G25: 37 | H25: 97.2972973 | I25: 29.18918919 | J25: 4 | K25: 100 | L25: 30 | M25: 628 | N25: 628 | O25: 583 | P25: 583 | Q25: 100 | R25: 40 | S25: 99.18918919
A26: 22 | B26: г. Барнаул | C26: МБУДО «Детская школа искусств «Традиция» с. Власиха г. Барнаула | D26: 11 | E26: 11 | F26: 24 | G26: 36 | H26: 83.33333333 | I26: 25 | J26: 4 | K26: 100 | L26: 30 | M26: 447 | N26: 448 | O26: 370 | P26: 372 | Q26: 99.61957565 | R26: 39.84783026 | S26: 94.84783026
A27: 23 | B27: г. Барнаул | C27: МБУДО Центр внешкольной работы «Военно-спортивный клуб «Борец» | D27: 9 | E27: 9 | F27: 31 | G27: 33 | H27: 96.96969697 | I27: 29.09090909 | J27: 3 | K27: 90 | L27: 27 | M27: 78 | N27: 79 | O27: 78 | P27: 78 | Q27: 99.36708861 | R27: 39.74683544 | S27: 95.83774453
A28: 24 | B28: г. Барнаул | C28: МБУДО «Центр эстетического воспитания «Песнохорки» | D28: 8 | E28: 9 | F28: 28.5 | G28: 34 | H28: 86.35620915 | I28: 25.90686275 | J28: 3 | K28: 90 | L28: 27 | M28: 158 | N28: 160 | O28: 142 | P28: 144 | Q28: 98.68055556 | R28: 39.47222222 | S28: 92.37908497
A29: 25 | B29: г. Барнаул | C29: МБУДО «Центр дополнительного образования детей «Память» Пост №1 г. Барнаула» | D29: 7.5 | E29: 9 | F29: 30.5 | G29: 35 | H29: 85.23809524 | I29: 25.57142857 | J29: 2 | K29: 60 | L29: 18 | M29: 219 | N29: 221 | O29: 197 | P29: 201 | Q29: 98.55248644 | R29: 39.42099457 | S29: 82.99242315
A30: 26 | B30: г. Барнаул | C30: МБУДО «Центр детского творчества» Октябрьского района г. Барнаула | D30: 9 | E30: 11 | F30: 37 | G30: 38 | H30: 89.59330144 | I30: 26.87799043 | J30: 4 | K30: 100 | L30: 30 | M30: 207 | N30: 211 | O30: 133 | P30: 137 | Q30: 97.59227869 | R30: 39.03691147 | S30: 95.91490191
A31: 27 | B31: г. Барнаул | C31: МБУДО «Центр развития творчества детей и юношества» Ленинского района г. Барнаула | D31: 11 | E31: 11 | F31: 35 | G31: 38 | H31: 96.05263158 | I31: 28.81578947 | J31: 4 | K31: 100 | L31: 30 | M31: 602 | N31: 604 | O31: 558 | P31: 559 | Q31: 99.74499165 | R31: 39.89799666 | S31: 98.71378613
A32: 28 | B32: г. Белокуриха | C32: МБУДО «Детско-юношеская спортивная школа» г. Белокурихи | D32: 8 | E32: 9 | F32: 31.5 | G32: 35 | H32: 89.44444444 | I32: 26.83333333 | J32: 5 | K32: 100 | L32: 30 | M32: 184 | N32: 185 | O32: 132 | P32: 132 | Q32: 99.72972973 | R32: 39.89189189 | S32: 96.72522523
A33: 29 | B33: г. Белокуриха | C33: МБУДО «Центр эстетического воспитания» г. Белокурихи | D33: 8.5 | E33: 9 | F33: 34.5 | G33: 36 | H33: 95.13888889 | I33: 28.54166667 | J33: 4 | K33: 100 | L33: 30 | M33: 248 | N33: 250 | O33: 193 | P33: 196 | Q33: 98.83469388 | R33: 39.53387755 | S33: 98.07554422
A34: 30 | B34: г. Бийск | C34: МБУДО «Детский эколого-туристический центр» г. Бийска | D34: 8 | E34: 9 | F34: 35.5 | G34: 36 | H34: 93.75 | I34: 28.125 | J34: 5 | K34: 100 | L34: 30 | M34: 358 | N34: 364 | O34: 329 | P34: 345 | Q34: 96.8569836 | R34: 38.74279344 | S34: 96.86779344
A35: 31 | B35: г. Бийск | C35: МБУДО «Дом детского творчества» г. Бийска | D35: 9 | E35: 9 | F35: 35 | G35: 36 | H35: 98.61111111 | I35: 29.58333333 | J35: 5 | K35: 100 | L35: 30 | M35: 570 | N35: 573 | O35: 442 | P35: 447 | Q35: 99.17893578 | R35: 39.67157431 | S35: 99.25490764
A36: 32 | B36: Бийский район | C36: МБУДО «Центр внешкольной работы» Бийского района | D36: 7.5 | E36: 9 | F36: 29.5 | G36: 33 | H36: 86.36363636 | I36: 25.90909091 | J36: 5 | K36: 100 | L36: 30 | M36: 101 | N36: 101 | O36: 73 | P36: 73 | Q36: 100 | R36: 40 | S36: 95.90909091
A37: 33 | B37: Благовещенский район | C37: МБУДО «Благовещенский детско-юношеский центр» | D37: 9.5 | E37: 11 | F37: 34.5 | G37: 38 | H37: 88.57655502 | I37: 26.57296651 | J37: 3 | K37: 90 | L37: 27 | M37: 244 | N37: 254 | O37: 157 | P37: 165 | Q37: 95.60725364 | R37: 38.24290146 | S37: 91.81586796
A38: 34 | B38: Бурлинский район | C38: МБУДО «Бурлинский Центр дополнительного образования» | D38: 7.5 | E38: 9 | F38: 21.5 | G38: 34 | H38: 73.28431373 | I38: 21.98529412 | J38: 3 | K38: 90 | L38: 27 | M38: 113 | N38: 114 | O38: 97 | P38: 97 | Q38: 99.56140351 | R38: 39.8245614 | S38: 88.80985552
A39: 35 | B39: Быстроистокский район | C39: МБУДО «Быстроистокская детско-юношеская спортивная школа» | D39: 8 | E39: 9 | F39: 34 | G39: 36 | H39: 91.66666667 | I39: 27.5 | J39: 4 | K39: 100 | L39: 30 | M39: 118 | N39: 119 | O39: 83 | P39: 83 | Q39: 99.57983193 | R39: 39.83193277 | S39: 97.33193277
A40: 36 | B40: Егорьевский район | C40: МБУДО «Егорьевская детско-юношеская спортивная школа» | D40: 7.5 | E40: 9 | F40: 28 | G40: 34 | H40: 82.84313725 | I40: 24.85294118 | J40: 2 | K40: 60 | L40: 18 | M40: 18 | N40: 19 | O40: 12 | P40: 12 | Q40: 97.36842105 | R40: 38.94736842 | S40: 81.8003096
A41: 37 | B41: Ельцовский район | C41: МБУДО «Ельцовский центр развития детей-детско-юношеская спортивная школа" | D41: 9 | E41: 9 | F41: 23 | G41: 35 | H41: 82.85714286 | I41: 24.85714286 | J41: 5 | K41: 100 | L41: 30 | M41: 250 | N41: 250 | O41: 193 | P41: 193 | Q41: 100 | R41: 40 | S41: 94.85714286
A42: 38 | B42: Завьяловский район | C42: МБОУДО «Завьяловский районный центр детского творчества» | D42: 7 | E42: 9 | F42: 28.5 | G42: 35 | H42: 79.6031746 | I42: 23.88095238 | J42: 4 | K42: 100 | L42: 30 | M42: 90 | N42: 90 | O42: 70 | P42: 71 | Q42: 99.29577465 | R42: 39.71830986 | S42: 93.59926224
A43: 39 | B43: Залесовский район | C43: Залесовское МБУДО «Центр спорта и творчества» | D43: 9 | E43: 9 | F43: 24.5 | G43: 34 | H43: 86.02941176 | I43: 25.80882353 | J43: 3 | K43: 90 | L43: 27 | M43: 79 | N43: 80 | O43: 59 | P43: 61 | Q43: 97.73565574 | R43: 39.0942623 | S43: 91.90308582
A44: 40 | B44: г. Заринск | C44: МБУДО «Центр детского творчества» г. Заринска | D44: 10 | E44: 11 | F44: 36 | G44: 38 | H44: 92.82296651 | I44: 27.84688995 | J44: 3 | K44: 90 | L44: 27 | M44: 586 | N44: 592 | O44: 477 | P44: 481 | Q44: 99.07744283 | R44: 39.63097713 | S44: 94.47786708
A45: 41 | B45: Заринский район | C45: МБУДО «Центр детского творчества» Заринского района | D45: 8.5 | E45: 9 | F45: 22.5 | G45: 35 | H45: 79.36507937 | I45: 23.80952381 | J45: 4 | K45: 100 | L45: 30 | M45: 74 | N45: 74 | O45: 50 | P45: 50 | Q45: 100 | R45: 40 | S45: 93.80952381
A46: 42 | B46: ЗАТО Сибирский | C46: МБУДО «Детско-юношеский центр «Росток» ЗАТО Сибирский | D46: 7.5 | E46: 9 | F46: 34 | G46: 35 | H46: 90.23809524 | I46: 27.07142857 | J46: 3 | K46: 90 | L46: 27 | M46: 99 | N46: 99 | O46: 86 | P46: 88 | Q46: 98.86363636 | R46: 39.54545455 | S46: 93.61688312
A47: 43 | B47: Змеиногорский район | C47: МБУДО «Дворец творчества детей и молодежи» Змеиногорского район | D47: 8 | E47: 9 | F47: 36 | G47: 36 | H47: 94.44444444 | I47: 28.33333333 | J47: 4 | K47: 100 | L47: 30 | M47: 666 | N47: 666 | O47: 590 | P47: 591 | Q47: 99.91539763 | R47: 39.96615905 | S47: 98.29949239
A48: 44 | B48: Зональный район | C48: МКОУДО «Зональная районная детско-юношеская спортивная школа» | D48: 9 | E48: 9 | F48: 13.5 | G48: 32 | H48: 71.09375 | I48: 21.328125 | J48: 4 | K48: 100 | L48: 30 | M48: 50 | N48: 50 | O48: 44 | P48: 44 | Q48: 100 | R48: 40 | S48: 91.328125
A49: 45 | B49: Калманский район | C49: МБУДО «Калманский районный детско-юношеский центр» | D49: 8 | E49: 9 | F49: 31 | G49: 34 | H49: 90.03267974 | I49: 27.00980392 | J49: 4 | K49: 100 | L49: 30 | M49: 78 | N49: 78 | O49: 57 | P49: 58 | Q49: 99.13793103 | R49: 39.65517241 | S49: 96.66497634
A50: 46 | B50: Каменский район | C50: МБУДО «Каменский многопрофильный образовательный центр» | D50: 8 | E50: 9 | F50: 30 | G50: 35 | H50: 87.3015873 | I50: 26.19047619 | J50: 3 | K50: 90 | L50: 27 | M50: 373 | N50: 374 | O50: 366 | P50: 366 | Q50: 99.86631016 | R50: 39.94652406 | S50: 93.13700025
A51: 47 | B51: Красногорский район | C51: МКУДО «Дом детского творчества» Красногорского района | D51: 6.5 | E51: 9 | F51: 34 | G51: 36 | H51: 83.33333333 | I51: 25 | J51: 4 | K51: 100 | L51: 30 | M51: 61 | N51: 64 | O51: 32 | P51: 38 | Q51: 89.76151316 | R51: 35.90460526 | S51: 90.90460526
A52: 48 | B52: Краснощековский район | C52: МБУДО «Краснощековский районный детско-юношеский центр» | D52: 8 | E52: 9 | F52: 32 | G52: 35 | H52: 90.15873016 | I52: 27.04761905 | J52: 4 | K52: 100 | L52: 30 | M52: 114 | N52: 114 | O52: 109 | P52: 110 | Q52: 99.54545455 | R52: 39.81818182 | S52: 96.86580087
A53: 49 | B53: Крутихинский район | C53: МБУДО «Крутихинский Детско-юношеский центр» | D53: 9 | E53: 9 | F53: 32.5 | G53: 34 | H53: 97.79411765 | I53: 29.33823529 | J53: 3 | K53: 90 | L53: 27 | M53: 456 | N53: 456 | O53: 450 | P53: 450 | Q53: 100 | R53: 40 | S53: 96.33823529
A54: 50 | B54: Кулундинский район | C54: МБУДО «Центр детского творчества» Кулундинского района | D54: 10 | E54: 11 | F54: 26.5 | G54: 36 | H54: 82.26010101 | I54: 24.6780303 | J54: 5 | K54: 100 | L54: 30 | M54: 236 | N54: 236 | O54: 191 | P54: 193 | Q54: 99.48186528 | R54: 39.79274611 | S54: 94.47077642
A55: 51 | B55: Курьинский район | C55: МБУДО «Дом детского творчества» Курьинского района | D55: 9 | E55: 9 | F55: 21 | G55: 35 | H55: 80 | I55: 24 | J55: 4 | K55: 100 | L55: 30 | M55: 86 | N55: 86 | O55: 62 | P55: 63 | Q55: 99.20634921 | R55: 39.68253968 | S55: 93.68253968
A56: 52 | B56: Кытмановский район | C56: МБУДО «Центр спорта и творчества Кытмановского района» | D56: 7.5 | E56: 9 | F56: 19.5 | G56: 34 | H56: 70.34313725 | I56: 21.10294118 | J56: 4 | K56: 100 | L56: 30 | M56: 262 | N56: 262 | O56: 223 | P56: 225 | Q56: 99.55555556 | R56: 39.82222222 | S56: 90.9251634
A57: 53 | B57: Локтевский район | C57: МБУДО «Дом детского творчества» Локтевского района | D57: 9 | E57: 9 | F57: 34 | G57: 34 | H57: 100 | I57: 30 | J57: 4 | K57: 100 | L57: 30 | M57: 88 | N57: 88 | O57: 76 | P57: 76 | Q57: 100 | R57: 40 | S57: 100
A58: 54 | B58: Мамонтовский район | C58: МБУДО «Мамонтовский детско-юношеский центр» | D58: 8 | E58: 9 | F58: 32.5 | G58: 34 | H58: 92.23856209 | I58: 27.67156863 | J58: 4 | K58: 100 | L58: 30 | M58: 140 | N58: 140 | O58: 97 | P58: 97 | Q58: 100 | R58: 40 | S58: 97.67156863
A59: 55 | B59: Мамонтовский район | C59: МКУДО «Мамонтовская детско-юношеская спортивная школа» | D59: 6.5 | E59: 9 | F59: 29 | G59: 35 | H59: 77.53968254 | I59: 23.26190476 | J59: 5 | K59: 100 | L59: 30 | M59: 36 | N59: 38 | O59: 25 | P59: 26 | Q59: 95.44534413 | R59: 38.17813765 | S59: 91.44004241
A60: 56 | B60: Михайловский район | C60: МКОДО «Михайловский образовательно-оздоровительный центр Им. Ю.А. Гагарина» | D60: 8 | E60: 9 | F60: 18.5 | G60: 34 | H60: 71.6503268 | I60: 21.49509804 | J60: 3 | K60: 90 | L60: 27 | M60: 42 | N60: 42 | O60: 47 | P60: 48 | Q60: 98.95833333 | R60: 39.58333333 | S60: 88.07843137
A61: 57 | B61: Михайловский район | C61: МКУДО «Михайловская детско-юношеская спортивная школа» | D61: 8 | E61: 9 | F61: 26.5 | G61: 33 | H61: 84.5959596 | I61: 25.37878788 | J61: 3 | K61: 90 | L61: 27 | M61: 124 | N61: 124 | O61: 105 | P61: 107 | Q61: 99.06542056 | R61: 39.62616822 | S61: 92.0049561
A62: 58 | B62: Новичихинский район | C62: МКОУДО «Новичихинская детско-юношеская спортивная школа» | D62: 8.5 | E62: 9 | F62: 25.5 | G62: 34 | H62: 84.72222222 | I62: 25.41666667 | J62: 3 | K62: 90 | L62: 27 | M62: 208 | N62: 210 | O62: 187 | P62: 187 | Q62: 99.52380952 | R62: 39.80952381 | S62: 92.22619048
A63: 59 | B63: Новоалтайск район | C63: МБОУДО «Детско-юношеский центр города Новоалтайска» | D63: 8 | E63: 9 | F63: 35.5 | G63: 36 | H63: 93.75 | I63: 28.125 | J63: 3 | K63: 90 | L63: 27 | M63: 595 | N63: 599 | O63: 517 | P63: 519 | Q63: 99.47343196 | R63: 39.78937278 | S63: 94.91437278
A64: 60 | B64: Павловский район | C64: МБУДО «Павловский детско-юношеский центр» | D64: 9 | E64: 9 | F64: 33 | G64: 34 | H64: 98.52941176 | I64: 29.55882353 | J64: 3 | K64: 90 | L64: 27 | M64: 218 | N64: 220 | O64: 174 | P64: 175 | Q64: 99.25974026 | R64: 39.7038961 | S64: 96.26271963
A65: 61 | B65: Панкрушихинский район | C65: МБОУДО «Панкрушихинский районный Центр творчества» | D65: 10 | E65: 11 | F65: 5 | G65: 33 | H65: 53.03030303 | I65: 15.90909091 | J65: 4 | K65: 100 | L65: 30 | M65: 267 | N65: 275 | O65: 209 | P65: 213 | Q65: 97.60648741 | R65: 39.04259496 | S65: 84.95168587
A66: 62 | B66: Первомайский район | C66: МБУДО «Центр творчества детей и молодежи «Созвездие» Первомайск | D66: 7.5 | E66: 9 | F66: 31.5 | G66: 34 | H66: 87.99019608 | I66: 26.39705882 | J66: 3 | K66: 90 | L66: 27 | M66: 692 | N66: 692 | O66: 593 | P66: 595 | Q66: 99.83193277 | R66: 39.93277311 | S66: 93.32983193
A67: 63 | B67: Первомайский район | C67: МБУДОД «Детско-юношеская спортивная школа» Первомайского район | D67: 0.5 | E67: 9 | F67: 15 | G67: 33 | H67: 25.50505051 | I67: 7.651515152 | J67: 4 | K67: 100 | L67: 30 | M67: 286 | N67: 288 | O67: 311 | P67: 311 | Q67: 99.65277778 | R67: 39.86111111 | S67: 77.51262626
A68: 64 | B68: Поспелихинский район | C68: МКУДО «Поспелихинский районный центр детского творчества» | D68: 10 | E68: 11 | F68: 38 | G68: 38 | H68: 95.45454545 | I68: 28.63636364 | J68: 3 | K68: 90 | L68: 27 | M68: 480 | N68: 487 | O68: 369 | P68: 370 | Q68: 99.14617903 | R68: 39.65847161 | S68: 95.29483525
A69: 65 | B69: Ребрихинский район | C69: МКОУДО «Ребрихинский детско-юношеский центр» | D69: 7.5 | E69: 9 | F69: 27 | G69: 34 | H69: 81.37254902 | I69: 24.41176471 | J69: 4 | K69: 100 | L69: 30 | M69: 354 | N69: 355 | O69: 320 | P69: 322 | Q69: 99.54859592 | R69: 39.81943837 | S69: =I69+L69+R69 -> 94.23120308
A70: 66 | B70: Родинский район | C70: МБУДО «Детский оздоровительно-образовательный центр Родинского | D70: 8 | E70: 9 | F70: 31 | G70: 36 | H70: =0.5*(D70/E70+F70/G70)*100 -> 87.5 | I70: =H70*0.3 -> 26.25 | J70: 4 | K70: =IF(J70<=3,J70*30,100) -> 100 | L70: 30 | M70: 71 | N70: 71 | O70: 64 | P70: 64 | Q70: =0.5*(M70/N70+O70/P70)*100 -> 100 | R70: =Q70*0.4 -> 40 | S70: 96.25
A71: 67 | B71: Романовский район | C71: МБУДО «Романовский детско-юношеский центр» | D71: 9 | E71: 9 | F71: 34 | G71: 34 | H71: 100 | I71: 30 | J71: 3 | K71: 90 | L71: 27 | M71: 157 | N71: 157 | O71: 127 | P71: 128 | Q71: 99.609375 | R71: 39.84375 | S71: 96.84375
A72: 68 | B72: г. Рубцовск | C72: МБУДО «Детско-юношеский центр» г. Рубцовска | D72: 8 | E72: 9 | F72: 36 | G72: 36 | H72: 94.44444444 | I72: 28.33333333 | J72: 2 | K72: 60 | L72: 18 | M72: 637 | N72: 637 | O72: 626 | P72: 627 | Q72: 99.92025518 | R72: 39.96810207 | S72: 86.30143541
A73: 69 | B73: г. Рубцовск | C73: МБУДО «Станция туризма и экскурсий» г. Рубцовска | D73: 9 | E73: 9 | F73: 35 | G73: 36 | H73: 98.61111111 | I73: 29.58333333 | J73: 4 | K73: 100 | L73: 30 | M73: 170 | N73: 170 | O73: 134 | P73: 135 | Q73: 99.62962963 | R73: 39.85185185 | S73: 99.43518519
A74: 70 | B74: г. Рубцовск | C74: МБУДО «Центр внешкольной работы «Малая Академия» г. Рубцовска | D74: 7 | E74: 9 | F74: 35.5 | G74: 36 | H74: 88.19444444 | I74: 26.45833333 | J74: 4 | K74: 100 | L74: 30 | M74: 552 | N74: 555 | O74: 439 | P74: 445 | Q74: 99.05557243 | R74: 39.62222897 | S74: 96.0805623
A75: 71 | B75: г. Рубцовск | C75: МБУДО «Центр развития творчества» г. Рубцовска | D75: 8 | E75: 9 | F75: 32 | G75: 34 | H75: 91.50326797 | I75: 27.45098039 | J75: 3 | K75: 90 | L75: =K75*0.3 -> 27 | M75: 519 | N75: 519 | O75: 496 | P75: 496 | Q75: 100 | R75: 40 | S75: 94.45098039
A76: 72 | B76: Рубцовский район | C76: МБУДО «Детско-юношеская спортивная школа» Рубцовского района | D76: 7 | E76: 9 | F76: 21 | G76: 37 | H76: 67.26726727 | I76: 20.18018018 | J76: 4 | K76: 100 | L76: 30 | M76: 49 | N76: 49 | O76: 42 | P76: 43 | Q76: 98.8372093 | R76: 39.53488372 | S76: 89.7150639
A77: 73 | B77: Рубцовский район | C77: МБУДО «Центр творческого развития «Ступени» Рубцовского района | D77: 8 | E77: 9 | F77: 26 | G77: 35 | H77: 81.58730159 | I77: 24.47619048 | J77: 1 | K77: 30 | L77: 9 | M77: 167 | N77: 168 | O77: 159 | P77: 160 | Q77: 99.38988095 | R77: 39.75595238 | S77: 73.23214286
A78: 74 | B78: г. Славгород | C78: МБУДО «Центр творчества детей и молодежи» г. Славгорода | D78: 11 | E78: 11 | F78: 38 | G78: 38 | H78: 100 | I78: 30 | J78: 3 | K78: 90 | L78: 27 | M78: 551 | N78: 557 | O78: 464 | P78: 471 | Q78: 98.71830057 | R78: 39.48732023 | S78: 96.48732023
A79: 75 | B79: Смоленский район | C79: МБУДО «Смоленский дом детского творчества» | D79: 7 | E79: 9 | F79: 35 | G79: 35 | H79: 88.88888889 | I79: 26.66666667 | J79: 4 | K79: 100 | L79: 30 | M79: 144 | N79: 144 | O79: 107 | P79: 108 | Q79: 99.53703704 | R79: 39.81481481 | S79: 96.48148148
A80: 76 | B80: Советский район | C80: МБУДО «Детско-юношеский центр» Советского района | D80: 9 | E80: 9 | F80: 37 | G80: 37 | H80: 100 | I80: 30 | J80: 4 | K80: 100 | L80: 30 | M80: 557 | N80: 558 | O80: 494 | P80: 495 | Q80: 99.80938416 | R80: 39.92375367 | S80: 99.92375367
A81: 77 | B81: Солонешенский район | C81: МБУДО «Солонешенский центр детского творчества» | D81: 8 | E81: 9 | F81: 29 | G81: 35 | H81: 85.87301587 | I81: 25.76190476 | J81: 4 | K81: 100 | L81: 30 | M81: 84 | N81: 85 | O81: 54 | P81: 55 | Q81: 98.5026738 | R81: 39.40106952 | S81: 95.16297428
A82: 78 | B82: Солтонский район | C82: МКОУДО «Детско-юношеский центр» Солтонского района | D82: 7.5 | E82: 9 | F82: 31 | G82: 37 | H82: 83.55855856 | I82: 25.06756757 | J82: 3 | K82: 90 | L82: 27 | M82: 121 | N82: 124 | O82: 109 | P82: 109 | Q82: 98.79032258 | R82: 39.51612903 | S82: 91.5836966
A83: 79 | B83: Табунский район | C83: МБУДО «Центр дополнительного образования детей» Табунского рай | D83: 8 | E83: 9 | F83: 32 | G83: 36 | H83: 88.88888889 | I83: 26.66666667 | J83: 2 | K83: 60 | L83: 18 | M83: 116 | N83: 120 | O83: 85 | P83: 85 | Q83: 98.33333333 | R83: 39.33333333 | S83: 84
A84: 80 | B84: Тальменский район | C84: МКУДО «Тальменская детско-юношеская спортивная школа» | D84: 7 | E84: 9 | F84: 31 | G84: 36 | H84: 81.94444444 | I84: 24.58333333 | J84: 3 | K84: 90 | L84: 27 | M84: 227 | N84: 227 | O84: 223 | P84: 223 | Q84: 100 | R84: 40 | S84: 91.58333333
A85: 81 | B85: Тальменский район | C85: МКУДО «Тальменский центр внешкольной работы» | D85: 8 | E85: 9 | F85: 33.5 | G85: 37 | H85: 89.71471471 | I85: 26.91441441 | J85: 4 | K85: 100 | L85: 30 | M85: 340 | N85: 341 | O85: 309 | P85: 311 | Q85: 99.53182903 | R85: 39.81273161 | S85: 96.72714602
A86: 82 | B86: Тогульский район | C86: МКУДО «Центр творчества, спорта и отдыха» Тогульского района | D86: 8 | E86: 9 | F86: 25 | G86: 35 | H86: 80.15873016 | I86: 24.04761905 | J86: 4 | K86: 100 | L86: 30 | M86: 151 | N86: 153 | O86: 125 | P86: 127 | Q86: 98.55900365 | R86: 39.42360146 | S86: 93.47122051
A87: 83 | B87: Топчихинский район | C87: МКУДО «Топчихинская детско-юношеская спортивная школа» | D87: 8 | E87: 9 | F87: 31.5 | G87: 36 | H87: 88.19444444 | I87: 26.45833333 | J87: 2 | K87: 60 | L87: 18 | M87: 154 | N87: 155 | O87: 119 | P87: 120 | Q87: 99.26075269 | R87: 39.70430108 | S87: 84.16263441
A88: 84 | B88: Топчихинский район | C88: МКУДО «Топчихинский детско-юношеский центр» | D88: 8 | E88: 9 | F88: 35 | G88: 36 | H88: 93.05555556 | I88: 27.91666667 | J88: 2 | K88: 60 | L88: 18 | M88: 233 | N88: 235 | O88: 218 | P88: 218 | Q88: 99.57446809 | R88: 39.82978723 | S88: 85.7464539
A89: 85 | B89: Третьяковский район | C89: МБОУДО «Центр развития творчества детей и юношества» Третьяковского района | D89: 8 | E89: 9 | F89: 31.5 | G89: 35 | H89: 89.44444444 | I89: 26.83333333 | J89: 3 | K89: 90 | L89: 27 | M89: 114 | N89: 114 | O89: 89 | P89: 89 | Q89: 100 | R89: 40 | S89: 93.83333333
A90: 86 | B90: Троицкий район | C90: МБУДО «Троицкий детско-юношеский центр» | D90: 7.5 | E90: 9 | F90: 34.5 | G90: 37 | H90: 88.28828829 | I90: 26.48648649 | J90: 4 | K90: 100 | L90: 30 | M90: 48 | N90: 49 | O90: 42 | P90: 42 | Q90: 98.97959184 | R90: 39.59183673 | S90: 96.07832322
A91: 87 | B91: Тюменцевский район | C91: МБУДО «Тюменцевский районный центр детского творчества» | D91: 8 | E91: 9 | F91: 31 | G91: 34 | H91: 90.03267974 | I91: 27.00980392 | J91: 3 | K91: 90 | L91: 27 | M91: 71 | N91: 73 | O91: 58 | P91: 58 | Q91: 98.63013699 | R91: 39.45205479 | S91: 93.46185872
A92: 88 | B92: Усть-Калманский район | C92: МБУДО «Центр детского творчества» Усть-Калманского района | D92: 8 | E92: 9 | F92: 35 | G92: 36 | H92: 93.05555556 | I92: 27.91666667 | J92: 3 | K92: 90 | L92: 27 | M92: 219 | N92: 219 | O92: 142 | P92: 144 | Q92: 99.30555556 | R92: 39.72222222 | S92: 94.63888889
A93: 89 | B93: Усть-Пристанский район | C93: МКУДО «Дом детского творчества» Усть-Пристанского района | D93: 6.5 | E93: 9 | F93: 25 | G93: 34 | H93: 72.87581699 | I93: 21.8627451 | J93: 4 | K93: 100 | L93: 30 | M93: 106 | N93: 107 | O93: 96 | P93: 96 | Q93: 99.53271028 | R93: 39.81308411 | S93: 91.67582921
A94: 90 | B94: Хабарский район | C94: МБУДО «Центр детского творчества» Хабарского района | D94: 8 | E94: 9 | F94: 25.5 | G94: 35 | H94: 80.87301587 | I94: 24.26190476 | J94: 4 | K94: 100 | L94: 30 | M94: 22 | N94: 22 | O94: 20 | P94: 20 | Q94: 100 | R94: 40 | S94: 94.26190476
A95: 91 | B95: Целинный район | C95: МБУДО «Центр творчества и отдыха» Целинного района | D95: 8 | E95: 9 | F95: 32 | G95: 34 | H95: 91.50326797 | I95: 27.45098039 | J95: 2 | K95: 60 | L95: 18 | M95: 139 | N95: 142 | O95: 98 | P95: 98 | Q95: 98.94366197 | R95: 39.57746479 | S95: 85.02844518
A96: 92 | B96: Чарышский район | C96: МБУДО «Детско-юношеская спортивная школа» Чарышского района | D96: 9 | E96: 9 | F96: 35.5 | G96: 37 | H96: 97.97297297 | I96: 29.39189189 | J96: 2 | K96: 60 | L96: 18 | M96: 213 | N96: 213 | O96: 54 | P96: 54 | Q96: 100 | R96: 40 | S96: 87.39189189
A97: 93 | B97: Чарышский район | C97: МБУДО «Центр детского творчества»Чарышского района | D97: 9 | E97: 9 | F97: 22.5 | G97: 37 | H97: 80.40540541 | I97: 24.12162162 | J97: 4 | K97: 100 | L97: 30 | M97: 156 | N97: 160 | O97: 146 | P97: 146 | Q97: 98.75 | R97: 39.5 | S97: 93.62162162
A98: 94 | B98: Шелаболихинский район | C98: МБУДО «Шелаболихинский центр детского творчества» | D98: 8 | E98: 9 | F98: 36 | G98: 37 | H98: 93.09309309 | I98: 27.92792793 | J98: 3 | K98: 90 | L98: 27 | M98: 116 | N98: 116 | O98: 96 | P98: 96 | Q98: 100 | R98: 40 | S98: 94.92792793
A99: 95 | B99: Шелаболихинский район | C99: МКУДО «Шелаболихинская детско-юношеская спортивная школа» | D99: 8 | E99: 9 | F99: 31.5 | G99: 36 | H99: 88.19444444 | I99: 26.45833333 | J99: 4 | K99: 100 | L99: 30 | M99: 170 | N99: 172 | O99: 91 | P99: 91 | Q99: 99.41860465 | R99: 39.76744186 | S99: 96.22577519
A100: 96 | B100: г. Яровое | C100: МБУДО «Центр научно-технического творчества учащихся» г. Яровое | D100: 9 | E100: 9 | F100: 29.5 | G100: 36 | H100: 90.97222222 | I100: 27.29166667 | J100: 4 | K100: 100 | L100: 30 | M100: 204 | N100: 206 | O100: 174 | P100: 175 | Q100: 99.22884882 | R100: 39.69153953 | S100: 96.9832062

Sheet 1ОиДинфоб
D1: Показатель 1.1 | H1: Показатель 1.2 | K1: Показатель 1.3
D2: Показатель 1.1.1 | E2: Покзатель 1.1.2 | K2: Показатель 1.3.1
B3: № | C3: ДО | D3: 1.1.1. Объем информации, размещенной на информационных стендах в помещении организации | E3: 1.1.2. Объем информации, размещенной на официальном сайте организации | F3: Значение показателя 1.1 | G3: Значение показателя 1.1 с учетом значимости | H3: Количество функционирующих дистанционных способов взаимодействия | I3: Значение показателя 1.2 | J3: Значение показателя 1.2 с учетом значимости | K3: Число получателей услуг, удовлетворенных качеством, полнотой и доступностью информации о деятельности организации, размещенной на стендах организации | L3: Число опрошенных получателей услуг, ответивших на соответствующий вопрос анкеты | M3: Число получателей услуг, удовлетворенных качеством, полнотой и доступностью информации о деятельности организации, размещенной на сайте организации | N3: Число опрошенных получателей услуг, ответивших на соответствующий вопрос анкеты | O3: Значение показателя 1.3 | P3: Значение показателя 1 .3 с учетом веса | Q3: Итого по критерию:
F4: 100 | G4: 30 | I4: 100 | J4: 30 | O4: 100 | P4: 40 | Q4: =G4+J4+P4 -> 100
A5: 1 | B5: г. Алейск | C5: МБУДО «Центр детского творчества» (г. Алейск) | D5: 7 | E5: 29.5 | F5: 82.27124183 | G5: 24.68137255 | H5: 6 | I5: 100 | J5: 30 | K5: 582 | L5: 586 | M5: 529 | N5: 531 | O5: 99.47037915 | P5: 39.78815166 | Q5: 94.46952421
A6: 2 | B6: Алтайский район | C6: МАОУДО «Алтайский районный детско-юношеский центр» | D6: 8 | E6: 34 | F6: 93.01587302 | G6: 27.9047619 | H6: 4 | I6: 100 | J6: 30 | K6: 498 | L6: 499 | M6: 435 | N6: 439 | O6: 99.44421873 | P6: 39.77768749 | Q6: 97.6824494
A7: 3 | B7: Баевский район | C7: МБУДО «Баевский Центр детского творчества и профессионального обучения Алтайского края» | D7: 9 | E7: 32.5 | F7: 97.79411765 | G7: 29.33823529 | H7: 4 | I7: 100 | J7: 30 | K7: 145 | L7: 145 | M7: 143 | N7: 143 | O7: 100 | P7: 40 | Q7: 99.33823529
A8: 4 | B8: г. Барнаул | C8: КГБУДО «Алтайский краевой дворец творчества детей и молодежи» | D8: 8 | E8: 33 | F8: 90.27777778 | G8: 27.08333333 | H8: 3 | I8: 90 | J8: 27 | K8: 417 | L8: 430 | M8: 355 | N8: 362 | O8: 97.52152126 | P8: 39.00860851 | Q8: 93.09194184
A9: 5 | B9: г. Барнаул | C9: КГБУДО «Алтайский краевой детский экологический центр» | D9: 9 | E9: 35 | F9: 98.61111111 | G9: 29.58333333 | H9: 5 | I9: 100 | J9: 30 | K9: 488 | L9: 490 | M9: 521 | N9: 521 | O9: 99.79591837 | P9: 39.91836735 | Q9: 99.50170068
A10: 6 | B10: г. Барнаул | C10: КГБУДО «Алтайский краевой центр детского отдыха, туризма и краеведения «Алтай» | D10: 8.5 | E10: 34 | F10: 94.44444444 | G10: 28.33333333 | H10: 6 | I10: 100 | J10: 30 | K10: 240 | L10: 241 | M10: 241 | N10: 252 | O10: 97.60999144 | P10: 39.04399658 | Q10: 97.37732991
A11: 7 | B11: г. Барнаул | C11: КГБУДО «Детский технопарк Алтайского края «Кванториум.22» | D11: 11 | E11: 38 | F11: 100 | G11: 30 | H11: 4 | I11: 100 | J11: 30 | K11: 700 | L11: 701 | M11: 718 | N11: 723 | O11: 99.58289186 | P11: 39.83315674 | Q11: 99.83315674
A12: 8 | B12: г. Барнаул | C12: МБУДО «Барнаульский городской детско-юношеский центр» | D12: 10 | E12: 35 | F12: 94.06565657 | G12: 28.21969697 | H12: 5 | I12: 100 | J12: 30 | K12: 610 | L12: 615 | M12: 568 | N12: 575 | O12: 98.98480028 | P12: 39.59392011 | Q12: 97.81361708
A13: 9 | B13: г. Барнаул | C13: МБУДО «Барнаульская городская станция юных натуралистов» | D13: 10 | E13: 35 | F13: 92.75184275 | G13: 27.82555283 | H13: 4 | I13: 100 | J13: 30 | K13: 172 | L13: 176 | M13: 152 | N13: 155 | O13: 97.89589443 | P13: 39.15835777 | Q13: 96.9839106
A14: 10 | B14: г. Барнаул | C14: МБУДО «Барнаульская городская станция юных техников» | D14: 7.5 | E14: 35.5 | F14: 90.97222222 | G14: 27.29166667 | H14: 6 | I14: 100 | J14: 30 | K14: 548 | L14: 548 | M14: 497 | N14: 501 | O14: 99.6007984 | P14: 39.84031936 | Q14: 97.13198603
A15: 11 | B15: г. Барнаул | C15: МБУДО «Детский оздоровительно-образовательный (профильный) центр Гармония» | D15: 7.5 | E15: 32 | F15: 90.15151515 | G15: 27.04545455 | H15: 3 | I15: 90 | J15: 27 | K15: 54 | L15: 54 | M15: 51 | N15: 51 | O15: 100 | P15: 40 | Q15: 94.04545455
A16: 12 | B16: г. Барнаул | C16: МБУДО «Дом художественного творчества детей» (г. Барнаул) | D16: 11 | E16: 36 | F16: 97.36842105 | G16: 29.21052632 | H16: 4 | I16: 100 | J16: 30 | K16: 542 | L16: 547 | M16: 531 | N16: 536 | O16: 99.0765437 | P16: 39.63061748 | Q16: 98.8411438
A17: 13 | B17: г. Барнаул | C17: МБУДО «Детско-юношеский центр» Индустриального района г. Барнау | D17: 10 | E17: 35.5 | F17: 93.42751843 | G17: 28.02825553 | H17: 5 | I17: 100 | J17: 30 | K17: 667 | L17: 670 | M17: 403 | N17: 410 | O17: 98.92246087 | P17: 39.56898435 | Q17: 97.59723987
A18: 14 | B18: г. Барнаул | C18: МБУДО «Центр детского (юношеского) технического творчества» Лени | D18: 9 | E18: 5 | F18: 57.8125 | G18: 17.34375 | H18: 3 | I18: 90 | J18: 27 | K18: 97 | L18: 97 | M18: 88 | N18: 90 | O18: 98.88888889 | P18: 39.55555556 | Q18: 83.89930556
A19: 15 | B19: г. Барнаул | C19: МБУДО «Центр детского творчества №2» г. Барнаула | D19: 9 | E19: 34 | F19: 98.57142857 | G19: 29.57142857 | H19: 4 | I19: 100 | J19: 30 | K19: 442 | L19: 448 | M19: 358 | N19: 364 | O19: 98.50618132 | P19: 39.40247253 | Q19: 98.9739011
A20: 16 | B20: г. Барнаул | C20: МБУДО «Центр детского творчества» Центрального района г. Барнаула | D20: 11 | E20: 30.5 | F20: 91.21621622 | G20: 27.36486486 | H20: 3 | I20: 90 | J20: 27 | K20: 195 | L20: 198 | M20: 174 | N20: 176 | O20: 98.67424242 | P20: 39.46969697 | Q20: 93.83456183
A21: 17 | B21: г. Барнаул | C21: МБУДО «Центр развития творчества детей и юношества» Индустриаль | D21: 10 | E21: 32 | F21: 87.55980861 | G21: 26.26794258 | H21: 4 | I21: 100 | J21: 30 | K21: 578 | L21: 581 | M21: 510 | N21: 511 | O21: 99.64397708 | P21: 39.85759083 | Q21: 96.12553342
A22: 18 | B22: г. Барнаул | C22: МБУДО «Центр развития творчества детей и молодежи» Железнодорож | D22: 10 | E22: 30.5 | F22: 87.81565657 | G22: 26.34469697 | H22: 4 | I22: 100 | J22: 30 | K22: 535 | L22: 542 | M22: 459 | N22: 469 | O22: 98.28814546 | P22: 39.31525818 | Q22: 95.65995515
A23: 19 | B23: г. Барнаул | C23: МБУДО «Центр физкультурно-спортивной направленности «Акцент» | D23: 9.5 | E23: 31 | F23: 85.07371007 | G23: 25.52211302 | H23: 3 | I23: 90 | J23: 27 | K23: 108 | L23: 108 | M23: 70 | N23: 71 | O23: 99.29577465 | P23: 39.71830986 | Q23: 92.24042288
A24: 20 | B24: г. Барнаул | C24: МБУДО Городской психолого-педагогический центр «Потенциал» | D24: 11 | E24: 37 | F24: 100 | G24: 30 | H24: 2 | I24: 60 | J24: 18 | K24: 655 | L24: 655 | M24: 631 | N24: 636 | O24: 99.60691824 | P24: 39.8427673 | Q24: 87.8427673
A25: 21 | B25: г. Барнаул | C25: МБУДО Детский оздоровительно-образовательный (профильный) центр «Валеологический центр» | D25: 11 | E25: 35 | F25: 97.2972973 | G25: 29.18918919 | H25: 4 | I25: 100 | J25: 30 | K25: 628 | L25: 628 | M25: 583 | N25: 583 | O25: 100 | P25: 40 | Q25: 99.18918919
A26: 22 | B26: г. Барнаул | C26: МБУДО «Детская школа искусств «Традиция» с. Власиха г. Барнаула | D26: 11 | E26: 24 | F26: 83.33333333 | G26: 25 | H26: 4 | I26: 100 | J26: 30 | K26: 447 | L26: 448 | M26: 370 | N26: 372 | O26: 99.61957565 | P26: 39.84783026 | Q26: 94.84783026
A27: 23 | B27: г. Барнаул | C27: МБУДО Центр внешкольной работы «Военно-спортивный клуб «Борец» | D27: 9 | E27: 31 | F27: 96.96969697 | G27: 29.09090909 | H27: 3 | I27: 90 | J27: 27 | K27: 78 | L27: 79 | M27: 78 | N27: 78 | O27: 99.36708861 | P27: 39.74683544 | Q27: 95.83774453
A28: 24 | B28: г. Барнаул | C28: МБУДО «Центр эстетического воспитания «Песнохорки» | D28: 8 | E28: 28.5 | F28: 86.35620915 | G28: 25.90686275 | H28: 3 | I28: 90 | J28: 27 | K28: 158 | L28: 160 | M28: 142 | N28: 144 | O28: 98.68055556 | P28: 39.47222222 | Q28: 92.37908497
A29: 25 | B29: г. Барнаул | C29: МБУДО «Центр дополнительного образования детей «Память» Пост №1 г. Барнаула» | D29: 7.5 | E29: 30.5 | F29: 85.23809524 | G29: 25.57142857 | H29: 2 | I29: 60 | J29: 18 | K29: 219 | L29: 221 | M29: 197 | N29: 201 | O29: 98.55248644 | P29: 39.42099457 | Q29: 82.99242315
A30: 26 | B30: г. Барнаул | C30: МБУДО «Центр детского творчества» Октябрьского района г. Барнаула | D30: 9 | E30: 37 | F30: 89.59330144 | G30: 26.87799043 | H30: 4 | I30: 100 | J30: 30 | K30: 207 | L30: 211 | M30: 133 | N30: 137 | O30: 97.59227869 | P30: 39.03691147 | Q30: 95.91490191
A31: 27 | B31: г. Барнаул | C31: МБУДО «Центр развития творчества детей и юношества» Ленинского района г. Барнаула | D31: 11 | E31: 35 | F31: 96.05263158 | G31: 28.81578947 | H31: 4 | I31: 100 | J31: 30 | K31: 602 | L31: 604 | M31: 558 | N31: 559 | O31: 99.74499165 | P31: 39.89799666 | Q31: 98.71378613
A32: 28 | B32: г. Белокуриха | C32: МБУДО «Детско-юношеская спортивная школа» г. Белокурихи | D32: 8 | E32: 31.5 | F32: 89.44444444 | G32: 26.83333333 | H32: 5 | I32: 100 | J32: 30 | K32: 184 | L32: 185 | M32: 132 | N32: 132 | O32: 99.72972973 | P32: 39.89189189 | Q32: 96.72522523
A33: 29 | B33: г. Белокуриха | C33: МБУДО «Центр эстетического воспитания» г. Белокурихи | D33: 8.5 | E33: 34.5 | F33: 95.13888889 | G33: 28.54166667 | H33: 4 | I33: 100 | J33: 30 | K33: 248 | L33: 250 | M33: 193 | N33: 196 | O33: 98.83469388 | P33: 39.53387755 | Q33: 98.07554422
A34: 30 | B34: г. Бийск | C34: МБУДО «Детский эколого-туристический центр» г. Бийска | D34: 8 | E34: 35.5 | F34: 93.75 | G34: 28.125 | H34: 5 | I34: 100 | J34: 30 | K34: 358 | L34: 364 | M34: 329 | N34: 345 | O34: 96.8569836 | P34: 38.74279344 | Q34: 96.86779344
A35: 31 | B35: г. Бийск | C35: МБУДО «Дом детского творчества» г. Бийска | D35: 9 | E35: 35 | F35: 98.61111111 | G35: 29.58333333 | H35: 5 | I35: 100 | J35: 30 | K35: 570 | L35: 573 | M35: 442 | N35: 447 | O35: 99.17893578 | P35: 39.67157431 | Q35: 99.25490764
A36: 32 | B36: Бийский район | C36: МБУДО «Центр внешкольной работы» Бийского района | D36: 7.5 | E36: 29.5 | F36: 86.36363636 | G36: 25.90909091 | H36: 5 | I36: 100 | J36: 30 | K36: 101 | L36: 101 | M36: 73 | N36: 73 | O36: 100 | P36: 40 | Q36: 95.90909091
A37: 33 | B37: Благовещенский район | C37: МБУДО «Благовещенский детско-юношеский центр» | D37: 9.5 | E37: 34.5 | F37: 88.57655502 | G37: 26.57296651 | H37: 3 | I37: 90 | J37: 27 | K37: 244 | L37: 254 | M37: 157 | N37: 165 | O37: 95.60725364 | P37: 38.24290146 | Q37: 91.81586796
A38: 34 | B38: Бурлинский район | C38: МБУДО «Бурлинский Центр дополнительного образования» | D38: 7.5 | E38: 21.5 | F38: 73.28431373 | G38: 21.98529412 | H38: 3 | I38: 90 | J38: 27 | K38: 113 | L38: 114 | M38: 97 | N38: 97 | O38: 99.56140351 | P38: 39.8245614 | Q38: 88.80985552
A39: 35 | B39: Быстроистокский район | C39: МБУДО «Быстроистокская детско-юношеская спортивная школа» | D39: 8 | E39: 34 | F39: 91.66666667 | G39: 27.5 | H39: 4 | I39: 100 | J39: 30 | K39: 118 | L39: 119 | M39: 83 | N39: 83 | O39: 99.57983193 | P39: 39.83193277 | Q39: 97.33193277
A40: 36 | B40: Егорьевский район | C40: МБУДО «Егорьевская детско-юношеская спортивная школа» | D40: 7.5 | E40: 28 | F40: 82.84313725 | G40: 24.85294118 | H40: 2 | I40: 60 | J40: 18 | K40: 18 | L40: 19 | M40: 12 | N40: 12 | O40: 97.36842105 | P40: 38.94736842 | Q40: 81.8003096
A41: 37 | B41: Ельцовский район | C41: МБУДО «Ельцовский центр развития детей-детско-юношеская спортивная школа" | D41: 9 | E41: 23 | F41: 82.85714286 | G41: 24.85714286 | H41: 5 | I41: 100 | J41: 30 | K41: 250 | L41: 250 | M41: 193 | N41: 193 | O41: 100 | P41: 40 | Q41: 94.85714286
A42: 38 | B42: Завьяловский район | C42: МБОУДО «Завьяловский районный центр детского творчества» | D42: 7 | E42: 28.5 | F42: 79.6031746 | G42: 23.88095238 | H42: 4 | I42: 100 | J42: 30 | K42: 90 | L42: 90 | M42: 70 | N42: 71 | O42: 99.29577465 | P42: 39.71830986 | Q42: 93.59926224
A43: 39 | B43: Залесовский район | C43: Залесовское МБУДО «Центр спорта и творчества» | D43: 9 | E43: 24.5 | F43: 86.02941176 | G43: 25.80882353 | H43: 3 | I43: 90 | J43: 27 | K43: 79 | L43: 80 | M43: 59 | N43: 61 | O43: 97.73565574 | P43: 39.0942623 | Q43: 91.90308582
A44: 40 | B44: г. Заринск | C44: МБУДО «Центр детского творчества» г. Заринска | D44: 10 | E44: 36 | F44: 92.82296651 | G44: 27.84688995 | H44: 3 | I44: 90 | J44: 27 | K44: 586 | L44: 592 | M44: 477 | N44: 481 | O44: 99.07744283 | P44: 39.63097713 | Q44: 94.47786708
A45: 41 | B45: Заринский район | C45: МБУДО «Центр детского творчества» Заринского района | D45: 8.5 | E45: 22.5 | F45: 79.36507937 | G45: 23.80952381 | H45: 4 | I45: 100 | J45: 30 | K45: 74 | L45: 74 | M45: 50 | N45: 50 | O45: 100 | P45: 40 | Q45: 93.80952381
A46: 42 | B46: ЗАТО Сибирский | C46: МБУДО «Детско-юношеский центр «Росток» ЗАТО Сибирский | D46: 7.5 | E46: 34 | F46: 90.23809524 | G46: 27.07142857 | H46: 3 | I46: 90 | J46: 27 | K46: 99 | L46: 99 | M46: 86 | N46: 88 | O46: 98.86363636 | P46: 39.54545455 | Q46: 93.61688312
A47: 43 | B47: Змеиногорский район | C47: МБУДО «Дворец творчества детей и молодежи» Змеиногорского район | D47: 8 | E47: 36 | F47: 94.44444444 | G47: 28.33333333 | H47: 4 | I47: 100 | J47: 30 | K47: 666 | L47: 666 | M47: 590 | N47: 591 | O47: 99.91539763 | P47: 39.96615905 | Q47: 98.29949239
A48: 44 | B48: Зональный район | C48: МКОУДО «Зональная районная детско-юношеская спортивная школа» | D48: 9 | E48: 13.5 | F48: 71.09375 | G48: 21.328125 | H48: 4 | I48: 100 | J48: 30 | K48: 50 | L48: 50 | M48: 44 | N48: 44 | O48: 100 | P48: 40 | Q48: 91.328125
A49: 45 | B49: Калманский район | C49: МБУДО «Калманский районный детско-юношеский центр» | D49: 8 | E49: 31 | F49: 90.03267974 | G49: 27.00980392 | H49: 4 | I49: 100 | J49: 30 | K49: 78 | L49: 78 | M49: 57 | N49: 58 | O49: 99.13793103 | P49: 39.65517241 | Q49: 96.66497634
A50: 46 | B50: Каменский район | C50: МБУДО «Каменский многопрофильный образовательный центр» | D50: 8 | E50: 30 | F50: 87.3015873 | G50: 26.19047619 | H50: 3 | I50: 90 | J50: 27 | K50: 373 | L50: 374 | M50: 366 | N50: 366 | O50: 99.86631016 | P50: 39.94652406 | Q50: 93.13700025
A51: 47 | B51: Красногорский район | C51: МКУДО «Дом детского творчества» Красногорского района | D51: 6.5 | E51: 34 | F51: 83.33333333 | G51: 25 | H51: 4 | I51: 100 | J51: 30 | K51: 61 | L51: 64 | M51: 32 | N51: 38 | O51: 89.76151316 | P51: 35.90460526 | Q51: 90.90460526
A52: 48 | B52: Краснощековский район | C52: МБУДО «Краснощековский районный детско-юношеский центр» | D52: 8 | E52: 32 | F52: 90.15873016 | G52: 27.04761905 | H52: 4 | I52: 100 | J52: 30 | K52: 114 | L52: 114 | M52: 109 | N52: 110 | O52: 99.54545455 | P52: 39.81818182 | Q52: 96.86580087
A53: 49 | B53: Крутихинский район | C53: МБУДО «Крутихинский Детско-юношеский центр» | D53: 9 | E53: 32.5 | F53: 97.79411765 | G53: 29.33823529 | H53: 3 | I53: 90 | J53: 27 | K53: 456 | L53: 456 | M53: 450 | N53: 450 | O53: 100 | P53: 40 | Q53: 96.33823529
A54: 50 | B54: Кулундинский район | C54: МБУДО «Центр детского творчества» Кулундинского района | D54: 10 | E54: 26.5 | F54: 82.26010101 | G54: 24.6780303 | H54: 5 | I54: 100 | J54: 30 | K54: 236 | L54: 236 | M54: 191 | N54: 193 | O54: 99.48186528 | P54: 39.79274611 | Q54: 94.47077642
A55: 51 | B55: Курьинский район | C55: МБУДО «Дом детского творчества» Курьинского района | D55: 9 | E55: 21 | F55: 80 | G55: 24 | H55: 4 | I55: 100 | J55: 30 | K55: 86 | L55: 86 | M55: 62 | N55: 63 | O55: 99.20634921 | P55: 39.68253968 | Q55: 93.68253968
A56: 52 | B56: Кытмановский район | C56: МБУДО «Центр спорта и творчества Кытмановского района» | D56: 7.5 | E56: 19.5 | F56: 70.34313725 | G56: 21.10294118 | H56: 4 | I56: 100 | J56: 30 | K56: 262 | L56: 262 | M56: 223 | N56: 225 | O56: 99.55555556 | P56: 39.82222222 | Q56: 90.9251634
A57: 53 | B57: Локтевский район | C57: МБУДО «Дом детского творчества» Локтевского района | D57: 9 | E57: 34 | F57: 100 | G57: 30 | H57: 4 | I57: 100 | J57: 30 | K57: 88 | L57: 88 | M57: 76 | N57: 76 | O57: 100 | P57: 40 | Q57: 100
A58: 54 | B58: Мамонтовский район | C58: МБУДО «Мамонтовский детско-юношеский центр» | D58: 8 | E58: 32.5 | F58: 92.23856209 | G58: 27.67156863 | H58: 4 | I58: 100 | J58: 30 | K58: 140 | L58: 140 | M58: 97 | N58: 97 | O58: 100 | P58: 40 | Q58: 97.67156863
A59: 55 | B59: Мамонтовский район | C59: МКУДО «Мамонтовская детско-юношеская спортивная школа» | D59: 6.5 | E59: 29 | F59: 77.53968254 | G59: 23.26190476 | H59: 5 | I59: 100 | J59: 30 | K59: 36 | L59: 38 | M59: 25 | N59: 26 | O59: 95.44534413 | P59: 38.17813765 | Q59: 91.44004241
A60: 56 | B60: Михайловский район | C60: МКОДО «Михайловский образовательно-оздоровительный центр Им. Ю.А. Гагарина» | D60: 8 | E60: 18.5 | F60: 71.6503268 | G60: 21.49509804 | H60: 3 | I60: 90 | J60: 27 | K60: 42 | L60: 42 | M60: 47 | N60: 48 | O60: 98.95833333 | P60: 39.58333333 | Q60: 88.07843137
A61: 57 | B61: Михайловский район | C61: МКУДО «Михайловская детско-юношеская спортивная школа» | D61: 8 | E61: 26.5 | F61: 84.5959596 | G61: 25.37878788 | H61: 3 | I61: 90 | J61: 27 | K61: 124 | L61: 124 | M61: 105 | N61: 107 | O61: 99.06542056 | P61: 39.62616822 | Q61: 92.0049561
A62: 58 | B62: Новичихинский район | C62: МКОУДО «Новичихинская детско-юношеская спортивная школа» | D62: 8.5 | E62: 25.5 | F62: 84.72222222 | G62: 25.41666667 | H62: 3 | I62: 90 | J62: 27 | K62: 208 | L62: 210 | M62: 187 | N62: 187 | O62: 99.52380952 | P62: 39.80952381 | Q62: 92.22619048
A63: 59 | B63: Новоалтайск район | C63: МБОУДО «Детско-юношеский центр города Новоалтайска» | D63: 8 | E63: 35.5 | F63: 93.75 | G63: 28.125 | H63: 3 | I63: 90 | J63: 27 | K63: 595 | L63: 599 | M63: 517 | N63: 519 | O63: 99.47343196 | P63: 39.78937278 | Q63: 94.91437278
A64: 60 | B64: Павловский район | C64: МБУДО «Павловский детско-юношеский центр» | D64: 9 | E64: 33 | F64: 98.52941176 | G64: 29.55882353 | H64: 3 | I64: 90 | J64: 27 | K64: 218 | L64: 220 | M64: 174 | N64: 175 | O64: 99.25974026 | P64: 39.7038961 | Q64: 96.26271963
A65: 61 | B65: Панкрушихинский район | C65: МБОУДО «Панкрушихинский районный Центр творчества» | D65: 10 | E65: 5 | F65: 53.03030303 | G65: 15.90909091 | H65: 4 | I65: 100 | J65: 30 | K65: 267 | L65: 275 | M65: 209 | N65: 213 | O65: 97.60648741 | P65: 39.04259496 | Q65: 84.95168587
A66: 62 | B66: Первомайский район | C66: МБУДО «Центр творчества детей и молодежи «Созвездие» Первомайск | D66: 7.5 | E66: 31.5 | F66: 87.99019608 | G66: 26.39705882 | H66: 3 | I66: 90 | J66: 27 | K66: 692 | L66: 692 | M66: 593 | N66: 595 | O66: 99.83193277 | P66: 39.93277311 | Q66: 93.32983193
A67: 63 | B67: Первомайский район | C67: МБУДОД «Детско-юношеская спортивная школа» Первомайского район | D67: 0.5 | E67: 15 | F67: 25.50505051 | G67: 7.651515152 | H67: 4 | I67: 100 | J67: 30 | K67: 286 | L67: 288 | M67: 311 | N67: 311 | O67: 99.65277778 | P67: 39.86111111 | Q67: 77.51262626
A68: 64 | B68: Поспелихинский район | C68: МКУДО «Поспелихинский районный центр детского творчества» | D68: 10 | E68: 38 | F68: 95.45454545 | G68: 28.63636364 | H68: 3 | I68: 90 | J68: 27 | K68: 480 | L68: 487 | M68: 369 | N68: 370 | O68: 99.14617903 | P68: 39.65847161 | Q68: 95.29483525
A69: 65 | B69: Ребрихинский район | C69: МКОУДО «Ребрихинский детско-юношеский центр» | D69: 7.5 | E69: 27 | F69: 81.37254902 | G69: 24.41176471 | H69: 4 | I69: 100 | J69: 30 | K69: 354 | L69: 355 | M69: 320 | N69: 322 | O69: 99.54859592 | P69: 39.81943837 | Q69: 94.23120308
A70: 66 | B70: Родинский район | C70: МБУДО «Детский оздоровительно-образовательный центр Родинского | D70: 8 | E70: 31 | F70: 87.5 | G70: 26.25 | H70: 4 | I70: 100 | J70: 30 | K70: 71 | L70: 71 | M70: 64 | N70: 64 | O70: 100 | P70: 40 | Q70: 96.25
A71: 67 | B71: Романовский район | C71: МБУДО «Романовский детско-юношеский центр» | D71: 9 | E71: 34 | F71: 100 | G71: 30 | H71: 3 | I71: 90 | J71: 27 | K71: 157 | L71: 157 | M71: 127 | N71: 128 | O71: 99.609375 | P71: 39.84375 | Q71: 96.84375
A72: 68 | B72: г. Рубцовск | C72: МБУДО «Детско-юношеский центр» г. Рубцовска | D72: 8 | E72: 36 | F72: 94.44444444 | G72: 28.33333333 | H72: 2 | I72: 60 | J72: 18 | K72: 637 | L72: 637 | M72: 626 | N72: 627 | O72: 99.92025518 | P72: 39.96810207 | Q72: 86.30143541
A73: 69 | B73: г. Рубцовск | C73: МБУДО «Станция туризма и экскурсий» г. Рубцовска | D73: 9 | E73: 35 | F73: 98.61111111 | G73: 29.58333333 | H73: 4 | I73: 100 | J73: 30 | K73: 170 | L73: 170 | M73: 134 | N73: 135 | O73: 99.62962963 | P73: 39.85185185 | Q73: 99.43518519
A74: 70 | B74: г. Рубцовск | C74: МБУДО «Центр внешкольной работы «Малая Академия» г. Рубцовска | D74: 7 | E74: 35.5 | F74: 88.19444444 | G74: 26.45833333 | H74: 4 | I74: 100 | J74: 30 | K74: 552 | L74: 555 | M74: 439 | N74: 445 | O74: 99.05557243 | P74: 39.62222897 | Q74: 96.0805623
A75: 71 | B75: г. Рубцовск | C75: МБУДО «Центр развития творчества» г. Рубцовска | D75: 8 | E75: 32 | F75: 91.50326797 | G75: 27.45098039 | H75: 3 | I75: 90 | J75: 27 | K75: 519 | L75: 519 | M75: 496 | N75: 496 | O75: 100 | P75: 40 | Q75: 94.45098039
A76: 72 | B76: Рубцовский район | C76: МБУДО «Детско-юношеская спортивная школа» Рубцовского района | D76: 7 | E76: 21 | F76: 67.26726727 | G76: 20.18018018 | H76: 4 | I76: 100 | J76: 30 | K76: 49 | L76: 49 | M76: 42 | N76: 43 | O76: 98.8372093 | P76: 39.53488372 | Q76: 89.7150639
A77: 73 | B77: Рубцовский район | C77: МБУДО «Центр творческого развития «Ступени» Рубцовского района | D77: 8 | E77: 26 | F77: 81.58730159 | G77: 24.47619048 | H77: 1 | I77: 30 | J77: 9 | K77: 167 | L77: 168 | M77: 159 | N77: 160 | O77: 99.38988095 | P77: 39.75595238 | Q77: 73.23214286
A78: 74 | B78: г. Славгород | C78: МБУДО «Центр творчества детей и молодежи» г. Славгорода | D78: 11 | E78: 38 | F78: 100 | G78: 30 | H78: 3 | I78: 90 | J78: 27 | K78: 551 | L78: 557 | M78: 464 | N78: 471 | O78: 98.71830057 | P78: 39.48732023 | Q78: 96.48732023
A79: 75 | B79: Смоленский район | C79: МБУДО «Смоленский дом детского творчества» | D79: 7 | E79: 35 | F79: 88.88888889 | G79: 26.66666667 | H79: 4 | I79: 100 | J79: 30 | K79: 144 | L79: 144 | M79: 107 | N79: 108 | O79: 99.53703704 | P79: 39.81481481 | Q79: 96.48148148
A80: 76 | B80: Советский район | C80: МБУДО «Детско-юношеский центр» Советского района | D80: 9 | E80: 37 | F80: 100 | G80: 30 | H80: 4 | I80: 100 | J80: 30 | K80: 557 | L80: 558 | M80: 494 | N80: 495 | O80: 99.80938416 | P80: 39.92375367 | Q80: 99.92375367
A81: 77 | B81: Солонешенский район | C81: МБУДО «Солонешенский центр детского творчества» | D81: 8 | E81: 29 | F81: 85.87301587 | G81: 25.76190476 | H81: 4 | I81: 100 | J81: 30 | K81: 84 | L81: 85 | M81: 54 | N81: 55 | O81: 98.5026738 | P81: 39.40106952 | Q81: 95.16297428
A82: 78 | B82: Солтонский район | C82: МКОУДО «Детско-юношеский центр» Солтонского района | D82: 7.5 | E82: 31 | F82: 83.55855856 | G82: 25.06756757 | H82: 3 | I82: 90 | J82: 27 | K82: 121 | L82: 124 | M82: 109 | N82: 109 | O82: 98.79032258 | P82: 39.51612903 | Q82: 91.5836966
A83: 79 | B83: Табунский район | C83: МБУДО «Центр дополнительного образования детей» Табунского рай | D83: 8 | E83: 32 | F83: 88.88888889 | G83: 26.66666667 | H83: 2 | I83: 60 | J83: 18 | K83: 116 | L83: 120 | M83: 85 | N83: 85 | O83: 98.33333333 | P83: 39.33333333 | Q83: 84
A84: 80 | B84: Тальменский район | C84: МКУДО «Тальменская детско-юношеская спортивная школа» | D84: 7 | E84: 31 | F84: 81.94444444 | G84: 24.58333333 | H84: 3 | I84: 90 | J84: 27 | K84: 227 | L84: 227 | M84: 223 | N84: 223 | O84: 100 | P84: 40 | Q84: 91.58333333
A85: 81 | B85: Тальменский район | C85: МКУДО «Тальменский центр внешкольной работы» | D85: 8 | E85: 33.5 | F85: 89.71471471 | G85: 26.91441441 | H85: 4 | I85: 100 | J85: 30 | K85: 340 | L85: 341 | M85: 309 | N85: 311 | O85: 99.53182903 | P85: 39.81273161 | Q85: 96.72714602
A86: 82 | B86: Тогульский район | C86: МКУДО «Центр творчества, спорта и отдыха» Тогульского района | D86: 8 | E86: 25 | F86: 80.15873016 | G86: 24.04761905 | H86: 4 | I86: 100 | J86: 30 | K86: 151 | L86: 153 | M86: 125 | N86: 127 | O86: 98.55900365 | P86: 39.42360146 | Q86: 93.47122051
A87: 83 | B87: Топчихинский район | C87: МКУДО «Топчихинская детско-юношеская спортивная школа» | D87: 8 | E87: 31.5 | F87: 88.19444444 | G87: 26.45833333 | H87: 2 | I87: 60 | J87: 18 | K87: 154 | L87: 155 | M87: 119 | N87: 120 | O87: 99.26075269 | P87: 39.70430108 | Q87: 84.16263441
A88: 84 | B88: Топчихинский район | C88: МКУДО «Топчихинский детско-юношеский центр» | D88: 8 | E88: 35 | F88: 93.05555556 | G88: 27.91666667 | H88: 2 | I88: 60 | J88: 18 | K88: 233 | L88: 235 | M88: 218 | N88: 218 | O88: 99.57446809 | P88: 39.82978723 | Q88: 85.7464539
A89: 85 | B89: Третьяковский район | C89: МБОУДО «Центр развития творчества детей и юношества» Третьяковского района | D89: 8 | E89: 31.5 | F89: 89.44444444 | G89: 26.83333333 | H89: 3 | I89: 90 | J89: 27 | K89: 114 | L89: 114 | M89: 89 | N89: 89 | O89: 100 | P89: 40 | Q89: 93.83333333
A90: 86 | B90: Троицкий район | C90: МБУДО «Троицкий детско-юношеский центр» | D90: 7.5 | E90: 34.5 | F90: 88.28828829 | G90: 26.48648649 | H90: 4 | I90: 100 | J90: 30 | K90: 48 | L90: 49 | M90: 42 | N90: 42 | O90: 98.97959184 | P90: 39.59183673 | Q90: 96.07832322
A91: 87 | B91: Тюменцевский район | C91: МБУДО «Тюменцевский районный центр детского творчества» | D91: 8 | E91: 31 | F91: 90.03267974 | G91: 27.00980392 | H91: 3 | I91: 90 | J91: 27 | K91: 71 | L91: 73 | M91: 58 | N91: 58 | O91: 98.63013699 | P91: 39.45205479 | Q91: 93.46185872
A92: 88 | B92: Усть-Калманский район | C92: МБУДО «Центр детского творчества» Усть-Калманского района | D92: 8 | E92: 35 | F92: 93.05555556 | G92: 27.91666667 | H92: 3 | I92: 90 | J92: 27 | K92: 219 | L92: 219 | M92: 142 | N92: 144 | O92: 99.30555556 | P92: 39.72222222 | Q92: 94.63888889
A93: 89 | B93: Усть-Пристанский район | C93: МКУДО «Дом детского творчества» Усть-Пристанского района | D93: 6.5 | E93: 25 | F93: 72.87581699 | G93: 21.8627451 | H93: 4 | I93: 100 | J93: 30 | K93: 106 | L93: 107 | M93: 96 | N93: 96 | O93: 99.53271028 | P93: 39.81308411 | Q93: 91.67582921
A94: 90 | B94: Хабарский район | C94: МБУДО «Центр детского творчества» Хабарского района | D94: 8 | E94: 25.5 | F94: 80.87301587 | G94: 24.26190476 | H94: 4 | I94: 100 | J94: 30 | K94: 22 | L94: 22 | M94: 20 | N94: 20 | O94: 100 | P94: 40 | Q94: 94.26190476
A95: 91 | B95: Целинный район | C95: МБУДО «Центр творчества и отдыха» Целинного района | D95: 8 | E95: 32 | F95: 91.50326797 | G95: 27.45098039 | H95: 2 | I95: 60 | J95: 18 | K95: 139 | L95: 142 | M95: 98 | N95: 98 | O95: 98.94366197 | P95: 39.57746479 | Q95: 85.02844518
A96: 92 | B96: Чарышский район | C96: МБУДО «Детско-юношеская спортивная школа» Чарышского района | D96: 9 | E96: 35.5 | F96: 97.97297297 | G96: 29.39189189 | H96: 2 | I96: 60 | J96: 18 | K96: 213 | L96: 213 | M96: 54 | N96: 54 | O96: 100 | P96: 40 | Q96: 87.39189189
A97: 93 | B97: Чарышский район | C97: МБУДО «Центр детского творчества»Чарышского района | D97: 9 | E97: 22.5 | F97: 80.40540541 | G97: 24.12162162 | H97: 4 | I97: 100 | J97: 30 | K97: 156 | L97: 160 | M97: 146 | N97: 146 | O97: 98.75 | P97: 39.5 | Q97: 93.62162162
A98: 94 | B98: Шелаболихинский район | C98: МБУДО «Шелаболихинский центр детского творчества» | D98: 8 | E98: 36 | F98: 93.09309309 | G98: 27.92792793 | H98: 3 | I98: 90 | J98: 27 | K98: 116 | L98: 116 | M98: 96 | N98: 96 | O98: 100 | P98: 40 | Q98: 94.92792793
A99: 95 | B99: Шелаболихинский район | C99: МКУДО «Шелаболихинская детско-юношеская спортивная школа» | D99: 8 | E99: 31.5 | F99: 88.19444444 | G99: 26.45833333 | H99: 4 | I99: 100 | J99: 30 | K99: 170 | L99: 172 | M99: 91 | N99: 91 | O99: 99.41860465 | P99: 39.76744186 | Q99: 96.22577519
A100: 96 | B100: г. Яровое | C100: МБУДО «Центр научно-технического творчества учащихся» г. Яровое | D100: 9 | E100: 29.5 | F100: 90.97222222 | G100: 27.29166667 | H100: 4 | I100: 100 | J100: 30 | K100: 204 | L100: 206 | M100: 174 | N100: 175 | O100: 99.22884882 | P100: 39.69153953 | Q100: 96.9832062

Sheet 2КомфУслНал
D1: Наличие в образовательных организациях комфортных условий для предоставления услуг
D2: Наличие комфортной зоны отдыха (ожидания) оборудованной соответствующей мебелью | E2: Наличие и понятность навигации внутри организации | F2: Наличие и доступность питьевой воды | G2: Наличие и доступность санитарно-гигиенических помещений | H2: Санитарное состояние помещений организации | I2: Транспортная доступность (доступность общественного транспорта и наличие парковки) | J2: Доступность записи на получение услуги (по телефону, с использованием сети «Интернет» на официальном сайте ор | K2: Всего
A3: 1 | B3: г. Алейск | C3: МБУДО «Центр детского творчества» (г. Алейск) | D3: 1 | E3: 1 | F3: 1 | G3: 1 | H3: 1 | I3: 1 | J3: 1 | K3: =SUM(D3:J3) -> 7
A4: 2 | B4: Алтайский район | C4: МАОУДО «Алтайский районный детско-юношеский центр» | D4: 1 | E4: 1 | F4: 1 | G4: 1 | H4: 1 | I4: 1 | J4: 1 | K4: =SUM(D4:J4) -> 7
A5: 3 | B5: Баевский район | C5: МБУДО «Баевский Центр детского творчества и профессионального обучения Алтайского края» | D5: 1 | E5: 1 | F5: 1 | G5: 1 | H5: 1 | I5: 1 | J5: 1 | K5: 7
A6: 4 | B6: г. Барнаул | C6: КГБУДО «Алтайский краевой дворец творчества детей и молодежи» | D6: 1 | E6: 1 | F6: 1 | G6: 1 | H6: 1 | I6: 1 | J6: 1 | K6: 7
A7: 5 | B7: г. Барнаул | C7: КГБУДО «Алтайский краевой детский экологический центр» | D7: 1 | E7: 1 | F7: 1 | G7: 1 | H7: 1 | I7: 1 | J7: 1 | K7: 7
A8: 6 | B8: г. Барнаул | C8: КГБУДО «Алтайский краевой центр детского отдыха, туризма и краеведения «Алтай» | D8: 1 | E8: 1 | G8: 1 | H8: 1 | I8: 1 | J8: 1 | K8: 6
A9: 7 | B9: г. Барнаул | C9: КГБУДО «Детский технопарк Алтайского края «Кванториум.22» | D9: 1 | E9: 1 | F9: 1 | G9: 1 | H9: 1 | I9: 1 | J9: 1 | K9: 7
A10: 8 | B10: г. Барнаул | C10: МБУДО «Барнаульский городской детско-юношеский центр» | D10: 1 | E10: 1 | F10: 1 | G10: 1 | H10: 1 | I10: 1 | J10: 1 | K10: 7
A11: 9 | B11: г. Барнаул | C11: МБУДО «Барнаульская городская станция юных натуралистов» | D11: 1 | E11: 1 | F11: 1 | G11: 1 | H11: 1 | I11: 1 | J11: 1 | K11: 7
A12: 10 | B12: г. Барнаул | C12: МБУДО «Барнаульская городская станция юных техников» | D12: 1 | E12: 1 | F12: 1 | G12: 1 | H12: 1 | I12: 1 | J12: 1 | K12: 7
A13: 11 | B13: г. Барнаул | C13: МБУДО «Детский оздоровительно-образовательный (профильный) центр Гармония» | D13: 1 | E13: 1 | F13: 1 | G13: 1 | H13: 1 | I13: 1 | J13: 1 | K13: 7
A14: 12 | B14: г. Барнаул | C14: МБУДО «Дом художественного творчества детей» (г. Барнаул) | D14: 1 | E14: 1 | F14: 1 | G14: 1 | H14: 1 | I14: 1 | J14: 1 | K14: 7
A15: 13 | B15: г. Барнаул | C15: МБУДО «Детско-юношеский центр» Индустриального района г. Барнау | D15: 1 | E15: 1 | F15: 1 | G15: 1 | H15: 1 | I15: 1 | J15: 1 | K15: 7
A16: 14 | B16: г. Барнаул | C16: МБУДО «Центр детского (юношеского) технического творчества» Лени | D16: 1 | E16: 1 | F16: 1 | G16: 1 | H16: 1 | I16: 1 | J16: 1 | K16: 7
A17: 15 | B17: г. Барнаул | C17: МБУДО «Центр детского творчества №2» г. Барнаула | D17: 1 | E17: 1 | F17: 1 | G17: 1 | H17: 1 | I17: 1 | J17: 1 | K17: 7
A18: 16 | B18: г. Барнаул | C18: МБУДО «Центр детского творчества» Центрального района г. Барнаула | D18: 1 | E18: 1 | F18: 1 | G18: 1 | H18: 1 | I18: 1 | J18: 1 | K18: 7
A19: 17 | B19: г. Барнаул | C19: МБУДО «Центр развития творчества детей и юношества» Индустриаль | D19: 1 | E19: 1 | F19: 1 | G19: 1 | H19: 1 | I19: 1 | J19: 1 | K19: 7
A20: 18 | B20: г. Барнаул | C20: МБУДО «Центр развития творчества детей и молодежи» Железнодорож | D20: 1 | E20: 1 | F20: 1 | G20: 1 | H20: 1 | I20: 1 | J20: 1 | K20: 7
A21: 19 | B21: г. Барнаул | C21: МБУДО «Центр физкультурно-спортивной направленности «Акцент» | D21: 0 | E21: 1 | F21: 1 | G21: 1 | H21: 1 | I21: 1 | J21: 1 | K21: 6
A22: 20 | B22: г. Барнаул | C22: МБУДО Городской психолого-педагогический центр «Потенциал» | D22: 1 | E22: 1 | F22: 1 | G22: 1 | H22: 1 | I22: 1 | J22: 1 | K22: 7
A23: 21 | B23: г. Барнаул | C23: МБУДО Детский оздоровительно-образовательный (профильный) центр «Валеологический центр» | D23: 1 | E23: 1 | F23: 1 | G23: 1 | H23: 1 | I23: 1 | J23: 1 | K23: 7
A24: 22 | B24: г. Барнаул | C24: МБУДО «Детская школа искусств «Традиция» с. Власиха г. Барнаула | D24: 1 | E24: 1 | F24: 1 | G24: 1 | H24: 1 | I24: 1 | J24: 1 | K24: 7
A25: 23 | B25: г. Барнаул | C25: МБУДО Центр внешкольной работы «Военно-спортивный клуб «Борец» | D25: 1 | E25: 1 | F25: 1 | G25: 1 | H25: 1 | I25: 1 | J25: 1 | K25: 7
A26: 24 | B26: г. Барнаул | C26: МБУДО «Центр эстетического воспитания «Песнохорки» | D26: 1 | E26: 1 | F26: 1 | G26: 1 | H26: 1 | I26: 1 | J26: 1 | K26: 7
A27: 25 | B27: г. Барнаул | C27: МБУДО «Центр дополнительного образования детей «Память» Пост №1 г. Барнаула» | D27: 1 | E27: 1 | F27: 1 | G27: 1 | H27: 1 | I27: 1 | J27: 1 | K27: 7
A28: 26 | B28: г. Барнаул | C28: МБУДО «Центр детского творчества» Октябрьского района г. Барнаула | D28: 1 | E28: 1 | F28: 1 | G28: 1 | H28: 1 | I28: 1 | J28: 1 | K28: 7
A29: 27 | B29: г. Барнаул | C29: МБУДО «Центр развития творчества детей и юношества» Ленинского района г. Барнаула | D29: 1 | E29: 1 | F29: 1 | G29: 1 | H29: 1 | I29: 1 | J29: 1 | K29: 7
A30: 28 | B30: г. Белокуриха | C30: МБУДО «Детско-юношеская спортивная школа» г. Белокурихи | D30: 1 | E30: 1 | F30: 1 | G30: 1 | H30: 1 | I30: 1 | J30: 1 | K30: 7
A31: 29 | B31: г. Белокуриха | C31: МБУДО «Центр эстетического воспитания» г. Белокурихи | D31: 1 | E31: 1 | F31: 1 | G31: 1 | H31: 1 | I31: 1 | J31: 1 | K31: 7
A32: 30 | B32: г. Бийск | C32: МБУДО «Детский эколого-туристический центр» г. Бийска | D32: 1 | E32: 1 | F32: 1 | G32: 1 | H32: 1 | I32: 0 | J32: 1 | K32: 6
A33: 31 | B33: г. Бийск | C33: МБУДО «Дом детского творчества» г. Бийска | D33: 1 | E33: 1 | F33: 1 | G33: 1 | H33: 1 | I33: 1 | J33: 1 | K33: 7
A34: 32 | B34: Бийский район | C34: МБУДО «Центр внешкольной работы» Бийского района | D34: 1 | E34: 1 | F34: 1 | G34: 1 | H34: 1 | I34: 1 | J34: 1 | K34: 7
A35: 33 | B35: Благовещенский район | C35: МБУДО «Благовещенский детско-юношеский центр» | D35: 1 | E35: 1 | F35: 1 | G35: 1 | H35: 1 | I35: 1 | J35: 1 | K35: 7
A36: 34 | B36: Бурлинский район | C36: МБУДО «Бурлинский Центр дополнительного образования» | D36: 1 | E36: 1 | F36: 1 | G36: 1 | H36: 1 | I36: 1 | J36: 1 | K36: 7
A37: 35 | B37: Быстроистокский район | C37: МБУДО «Быстроистокская детско-юношеская спортивная школа» | D37: 1 | E37: 1 | F37: 1 | G37: 1 | H37: 1 | I37: 1 | J37: 1 | K37: 7
A38: 36 | B38: Егорьевский район | C38: МБУДО «Егорьевская детско-юношеская спортивная школа» | D38: 1 | E38: 1 | F38: 1 | G38: 1 | H38: 1 | I38: 1 | J38: 1 | K38: 7
A39: 37 | B39: Ельцовский район | C39: МБУДО «Ельцовский центр развития детей-детско-юношеская спортивная школа" | D39: 1 | E39: 1 | F39: 1 | G39: 1 | H39: 1 | I39: 1 | J39: 1 | K39: 7
A40: 38 | B40: Завьяловский район | C40: МБОУДО «Завьяловский районный центр детского творчества» | D40: 1 | E40: 1 | F40: 1 | G40: 1 | H40: 1 | I40: 1 | J40: 1 | K40: 7
A41: 39 | B41: Залесовский район | C41: Залесовское МБУДО «Центр спорта и творчества» | D41: 1 | E41: 1 | F41: 1 | G41: 1 | H41: 1 | I41: 1 | J41: 1 | K41: 7
A42: 40 | B42: г. Заринск | C42: МБУДО «Центр детского творчества» г. Заринска | D42: 1 | E42: 1 | F42: 1 | G42: 1 | H42: 1 | I42: 1 | J42: 1 | K42: 7
A43: 41 | B43: Заринский район | C43: МБУДО «Центр детского творчества» Заринского района | D43: 1 | E43: 1 | F43: 1 | G43: 1 | H43: 1 | I43: 1 | J43: 1 | K43: 7
A44: 42 | B44: ЗАТО Сибирский | C44: МБУДО «Детско-юношеский центр «Росток» ЗАТО Сибирский | D44: 1 | E44: 1 | F44: 1 | G44: 1 | H44: 1 | I44: 1 | J44: 1 | K44: 7
A45: 43 | B45: Змеиногорский район | C45: МБУДО «Дворец творчества детей и молодежи» Змеиногорского район | D45: 1 | E45: 1 | F45: 1 | G45: 1 | H45: 1 | I45: 1 | J45: 1 | K45: 7
A46: 44 | B46: Зональный район | C46: МКОУДО «Зональная районная детско-юношеская спортивная школа» | D46: 1 | E46: 1 | F46: 1 | G46: 1 | H46: 1 | I46: 1 | J46: 1 | K46: 7
A47: 45 | B47: Калманский район | C47: МБУДО «Калманский районный детско-юношеский центр» | D47: 1 | E47: 1 | F47: 1 | G47: 1 | H47: 1 | I47: 0 | J47: 1 | K47: 6
A48: 46 | B48: Каменский район | C48: МБУДО «Каменский многопрофильный образовательный центр» | D48: 1 | E48: 1 | F48: 1 | G48: 1 | H48: 1 | I48: 1 | J48: 1 | K48: 7
A49: 47 | B49: Красногорский район | C49: МКУДО «Дом детского творчества» Красногорского района | D49: 1 | E49: 1 | F49: 1 | G49: 1 | H49: 1 | I49: 0 | J49: 1 | K49: 6
A50: 48 | B50: Краснощековский район | C50: МБУДО «Краснощековский районный детско-юношеский центр» | D50: 1 | E50: 1 | F50: 1 | G50: 1 | H50: 1 | I50: 1 | J50: 1 | K50: 7
A51: 49 | B51: Крутихинский район | C51: МБУДО «Крутихинский Детско-юношеский центр» | D51: 1 | E51: 1 | F51: 1 | G51: 1 | H51: 1 | I51: 1 | J51: 1 | K51: 7
A52: 50 | B52: Кулундинский район | C52: МБУДО «Центр детского творчества» Кулундинского района | D52: 1 | E52: 1 | F52: 1 | G52: 1 | H52: 1 | I52: 1 | J52: 1 | K52: 7
A53: 51 | B53: Курьинский район | C53: МБУДО «Дом детского творчества» Курьинского района | D53: 1 | E53: 1 | F53: 1 | G53: 1 | H53: 1 | I53: 1 | J53: 1 | K53: 7
A54: 52 | B54: Кытмановский район | C54: МБУДО «Центр спорта и творчества Кытмановского района» | D54: 1 | E54: 1 | F54: 1 | G54: 1 | H54: 1 | I54: 1 | J54: 1 | K54: 7
A55: 53 | B55: Локтевский район | C55: МБУДО «Дом детского творчества» Локтевского района | D55: 1 | E55: 1 | F55: 1 | G55: 1 | H55: 1 | I55: 1 | J55: 1 | K55: 7
A56: 54 | B56: Мамонтовский район | C56: МБУДО «Мамонтовский детско-юношеский центр» | D56: 1 | E56: 1 | F56: 1 | G56: 1 | H56: 1 | I56: 1 | J56: 1 | K56: 7
A57: 55 | B57: Мамонтовский район | C57: МКУДО «Мамонтовская детско-юношеская спортивная школа» | D57: 1 | E57: 1 | F57: 1 | G57: 1 | H57: 1 | I57: 1 | J57: 1 | K57: 7
A58: 56 | B58: Михайловский район | C58: МКОДО «Михайловский образовательно-оздоровительный центр Им. Ю.А. Гагарина» | D58: 1 | E58: 1 | F58: 1 | G58: 1 | H58: 1 | I58: 1 | J58: 1 | K58: 7
A59: 57 | B59: Михайловский район | C59: МКУДО «Михайловская детско-юношеская спортивная школа» | D59: 0 | E59: 1 | F59: 1 | G59: 1 | H59: 1 | I59: 1 | J59: 1 | K59: 6
A60: 58 | B60: Новичихинский район | C60: МКОУДО «Новичихинская детско-юношеская спортивная школа» | D60: 1 | E60: 1 | F60: 1 | G60: 1 | H60: 1 | I60: 1 | J60: 1 | K60: 7
A61: 59 | B61: Новоалтайск район | C61: МБОУДО «Детско-юношеский центр города Новоалтайска» | D61: 1 | E61: 1 | F61: 1 | G61: 1 | H61: 1 | I61: 1 | J61: 1 | K61: 7
A62: 60 | B62: Павловский район | C62: МБУДО «Павловский детско-юношеский центр» | D62: 1 | E62: 1 | F62: 1 | G62: 1 | H62: 1 | I62: 1 | J62: 1 | K62: 7
A63: 61 | B63: Панкрушихинский район | C63: МБОУДО «Панкрушихинский районный Центр творчества» | D63: 1 | E63: 1 | F63: 1 | G63: 1 | H63: 1 | I63: 1 | J63: 1 | K63: 7
A64: 62 | B64: Первомайский район | C64: МБУДО «Центр творчества детей и молодежи «Созвездие» Первомайск | D64: 1 | E64: 1 | F64: 1 | G64: 1 | H64: 1 | I64: 1 | J64: 1 | K64: 7
A65: 63 | B65: Первомайский район | C65: МБУДОД «Детско-юношеская спортивная школа» Первомайского район | D65: 1 | E65: 1 | F65: 1 | G65: 1 | H65: 1 | I65: 1 | J65: 1 | K65: 7
A66: 64 | B66: Поспелихинский район | C66: МКУДО «Поспелихинский районный центр детского творчества» | D66: 1 | E66: 1 | F66: 1 | G66: 1 | H66: 1 | I66: 1 | J66: 1 | K66: 7
A67: 65 | B67: Ребрихинский район | C67: МКОУДО «Ребрихинский детско-юношеский центр» | D67: 1 | E67: 1 | F67: 1 | G67: 1 | H67: 1 | I67: 1 | J67: 1 | K67: 7
A68: 66 | B68: Родинский район | C68: МБУДО «Детский оздоровительно-образовательный центр Родинского | D68: 1 | E68: 1 | F68: 1 | G68: 1 | H68: 1 | I68: 1 | J68: 1 | K68: =SUM(D68:J68) -> 7
A69: 67 | B69: Романовский район | C69: МБУДО «Романовский детско-юношеский центр» | D69: 1 | E69: 1 | F69: 1 | G69: 1 | H69: 1 | I69: 1 | J69: 1 | K69: 7
A70: 68 | B70: г. Рубцовск | C70: МБУДО «Детско-юношеский центр» г. Рубцовска | D70: 1 | E70: 1 | F70: 1 | G70: 1 | H70: 1 | I70: 1 | J70: 1 | K70: 7
A71: 69 | B71: г. Рубцовск | C71: МБУДО «Станция туризма и экскурсий» г. Рубцовска | D71: 1 | E71: 1 | F71: 1 | G71: 1 | H71: 1 | I71: 1 | J71: 1 | K71: 7
A72: 70 | B72: г. Рубцовск | C72: МБУДО «Центр внешкольной работы «Малая Академия» г. Рубцовска | D72: 1 | E72: 1 | F72: 1 | G72: 1 | H72: 1 | I72: 1 | J72: 1 | K72: 7
A73: 71 | B73: г. Рубцовск | C73: МБУДО «Центр развития творчества» г. Рубцовска | D73: 1 | E73: 1 | F73: 1 | G73: 1 | H73: 1 | I73: 1 | J73: 1 | K73: 7
A74: 72 | B74: Рубцовский район | C74: МБУДО «Детско-юношеская спортивная школа» Рубцовского района | D74: 1 | E74: 1 | F74: 1 | G74: 1 | H74: 1 | I74: 1 | J74: 1 | K74: 7
A75: 73 | B75: Рубцовский район | C75: МБУДО «Центр творческого развития «Ступени» Рубцовского района | D75: 1 | E75: 1 | F75: 1 | G75: 1 | H75: 1 | I75: 1 | J75: 1 | K75: 7
A76: 74 | B76: г. Славгород | C76: МБУДО «Центр творчества детей и молодежи» г. Славгорода | D76: 1 | E76: 1 | F76: 1 | G76: 1 | H76: 1 | I76: 1 | J76: 1 | K76: 7
A77: 75 | B77: Смоленский район | C77: МБУДО «Смоленский дом детского творчества» | D77: 1 | E77: 1 | F77: 1 | G77: 1 | H77: 1 | I77: 1 | J77: 1 | K77: 7
A78: 76 | B78: Советский район | C78: МБУДО «Детско-юношеский центр» Советского района | D78: 1 | E78: 1 | F78: 1 | G78: 1 | H78: 1 | I78: 1 | J78: 1 | K78: 7
A79: 77 | B79: Солонешенский район | C79: МБУДО «Солонешенский центр детского творчества» | D79: 1 | E79: 1 | F79: 1 | G79: 1 | H79: 1 | I79: 1 | J79: 1 | K79: 7
A80: 78 | B80: Солтонский район | C80: МКОУДО «Детско-юношеский центр» Солтонского района | D80: 1 | E80: 1 | F80: 1 | G80: 1 | H80: 1 | I80: 0 | J80: 1 | K80: 6
A81: 79 | B81: Табунский район | C81: МБУДО «Центр дополнительного образования детей» Табунского рай | D81: 1 | E81: 1 | F81: 1 | G81: 1 | H81: 1 | I81: 1 | J81: 1 | K81: 7
A82: 80 | B82: Тальменский район | C82: МКУДО «Тальменская детско-юношеская спортивная школа» | D82: 1 | E82: 1 | F82: 1 | G82: 1 | H82: 1 | I82: 1 | J82: 1 | K82: 7
A83: 81 | B83: Тальменский район | C83: МКУДО «Тальменский центр внешкольной работы» | D83: 1 | E83: 1 | F83: 1 | G83: 1 | H83: 1 | I83: 1 | J83: 1 | K83: 7
A84: 82 | B84: Тогульский район | C84: МКУДО «Центр творчества, спорта и отдыха» Тогульского района | D84: 1 | E84: 1 | F84: 1 | G84: 1 | H84: 1 | I84: 1 | J84: 1 | K84: 7
A85: 83 | B85: Топчихинский район | C85: МКУДО «Топчихинская детско-юношеская спортивная школа» | D85: 1 | E85: 1 | F85: 1 | G85: 1 | H85: 1 | I85: 1 | J85: 1 | K85: 7
A86: 84 | B86: Топчихинский район | C86: МКУДО «Топчихинский детско-юношеский центр» | D86: 1 | E86: 1 | F86: 1 | G86: 1 | H86: 1 | I86: 1 | J86: 1 | K86: 7
A87: 85 | B87: Третьяковский район | C87: МБОУДО «Центр развития творчества детей и юношества» Третьяковского района | D87: 1 | E87: 1 | F87: 1 | G87: 1 | H87: 1 | I87: 1 | J87: 1 | K87: 7
A88: 86 | B88: Троицкий район | C88: МБУДО «Троицкий детско-юношеский центр» | D88: 1 | E88: 1 | F88: 1 | G88: 1 | H88: 1 | I88: 1 | J88: 1 | K88: 7
A89: 87 | B89: Тюменцевский район | C89: МБУДО «Тюменцевский районный центр детского творчества» | D89: 1 | E89: 1 | F89: 1 | G89: 1 | H89: 1 | I89: 1 | J89: 1 | K89: 7
A90: 88 | B90: Усть-Калманский район | C90: МБУДО «Центр детского творчества» Усть-Калманского района | D90: 1 | E90: 1 | F90: 1 | G90: 1 | H90: 1 | I90: 1 | J90: 1 | K90: 7
A91: 89 | B91: Усть-Пристанский район | C91: МКУДО «Дом детского творчества» Усть-Пристанского района | D91: 1 | E91: 1 | F91: 1 | G91: 1 | H91: 1 | I91: 1 | J91: 1 | K91: 7
A92: 90 | B92: Хабарский район | C92: МБУДО «Центр детского творчества» Хабарского района | D92: 0 | E92: 1 | F92: 1 | G92: 1 | H92: 1 | I92: 1 | J92: 1 | K92: 6
A93: 91 | B93: Целинный район | C93: МБУДО «Центр творчества и отдыха» Целинного района | D93: 1 | E93: 1 | F93: 1 | G93: 1 | H93: 1 | I93: 1 | J93: 1 | K93: 7
A94: 92 | B94: Чарышский район | C94: МБУДО «Детско-юношеская спортивная школа» Чарышского района | D94: 1 | E94: 1 | F94: 1 | G94: 1 | H94: 1 | I94: 1 | J94: 1 | K94: 7
A95: 93 | B95: Чарышский район | C95: МБУДО «Центр детского творчества»Чарышского района | D95: 1 | E95: 1 | F95: 1 | G95: 1 | H95: 1 | I95: 1 | J95: 1 | K95: 7
A96: 94 | B96: Шелаболихинский район | C96: МБУДО «Шелаболихинский центр детского творчества» | D96: 1 | E96: 1 | F96: 1 | G96: 1 | H96: 1 | I96: 1 | J96: 1 | K96: 7
A97: 95 | B97: Шелаболихинский район | C97: МКУДО «Шелаболихинская детско-юношеская спортивная школа» | D97: 1 | E97: 1 | F97: 1 | G97: 1 | H97: 1 | I97: 1 | J97: 1 | K97: 7
A98: 96 | B98: г. Яровое | C98: МБУДО «Центр научно-технического творчества учащихся» г. Яровое | D98: 1 | E98: 1 | F98: 1 | G98: 1 | H98: 1 | I98: 1 | J98: 1 | K98: 7

Sheet 2КомУслОц
D1: Показатель 2.1 Обеспечение в организации социальной сферы комфортных условий для предоставления услуг
D2: 2.1.1. Наличие комфортных условий для предоставления услуг | G2: Показатель 2.3 Доля получателей услуг, удовлетворенных комфортностью условий предоставления услуг
B3: № | C3: ДО | D3: Количество комфортных условий для предоставления услуг | E3: Значение показателя 2.1.1 | F3: Значение показателя с учетом значимости | G3: Число получателей услуг, удовлетворенных комфортностью предоставления услуг организацией образования | H3: Число получателей услуг, опрошенных по данному вопросу | I3: Значение показателя 2.3 | J3: Значение показателя 2.3 с учетом значимости | K3: Итого по критерию:
E4: 100 | F4: 50 | I4: 100 | J4: =I4*0.5 -> 50 | K4: =F4+J4 -> 100
A5: 47 | B5: Красногорский район | C5: МКУДО «Дом детского творчества» Красногорского района | D5: 6 | E5: =IF(D5<=4,D5*20,100) -> 100 | F5: 50 | G5: 76 | H5: 77 | I5: =G5/H5*100 -> 98.7012987 | J5: =I5*0.5 -> 49.35064935 | K5: =F5+J5 -> 99.35064935

Sheet 3УслДостИнвНал
E1: Оборудование территории, прилегающей к организации, и ее помещений с учетом доступности для инвалидов: | K1: Обеспечение в организации условий доступности, позволяющих инвалидам получать услуги наравне с другими, включая:
E2: Оборудование входных групп пандусами/подъемными платформами; | F2: Наличие выделенных стоянок для автотранспортных средств инвалидов; | G2: Наличие адаптированных лифтов, поручней, расширенных дверных проемов; | H2: Наличие сменных кресел-колясок; | I2: Наличие специально оборудованных санитарно-гигиенических помещений в организации | K2: Дублирование для инвалидов по слуху и зрению звуковой и зрительной информации | L2: Дублирование надписей, знаков и иной текстовой и графической информации знаками, выполненными рельефно-точечным шрифтом Брайля | M2: Возможность предоставления инвалидам по слуху (слуху и зрению) услуг сурдопереводчика (тифлосурдопереводчика) | N2: Наличие альтернативной версии официального сайта организации социальной сферы в сети «Интернет» для инвалидов по зрению | O2: Помощь, оказываемая работниками организации, прошедшими необходимое обучение (инструктирование), по сопровождению инвалидов в помещении | P2: Наличие возможности предоставления услуги в дистанционном режиме или на дому
B3: 1 | C3: г. Алейск | D3: МБУДО «Центр детского творчества» (г. Алейск) | E3: 0 | F3: 1 | G3: 0 | H3: 0 | I3: 0 | J3: =SUM(E3:I3) -> 1 | K3: 0 | L3: 0 | M3: 0 | N3: 1 | O3: 1 | P3: 1 | Q3: =SUM(N3:P3) -> 3 | R3: =SUM(K3:P3) -> 3 | S3: 2 | T3: =IF(AND(Q3=3,S3=2),100,IF(AND(Q3=2,S3=2),60,IF(AND(Q3=1,S3=2),30,R3*20))) -> 100
B4: 2 | C4: Алтайский район | D4: МАОУДО «Алтайский районный детско-юношеский центр» | E4: 1 | F4: 1 | G4: 1 | H4: 0 | I4: 1 | J4: =SUM(E4:I4) -> 4 | K4: 1 | L4: 1 | M4: 0 | N4: 1 | O4: 1 | P4: 1 | Q4: =SUM(N4:P4) -> 3 | R4: =SUM(K4:P4) -> 5 | S4: 1 | T4: =IF(AND(Q4=3,S4=2),100,IF(AND(Q4=2,S4=2),60,IF(AND(Q4=1,S4=2),30,R4*20))) -> 100
B5: 3 | C5: Баевский район | D5: МБУДО «Баевский Центр детского творчества и профессионального обучения Алтайского края» | E5: 1 | F5: 1 | G5: 1 | H5: 1 | I5: 1 | J5: 5 | K5: 1 | L5: 1 | M5: 0 | N5: 1 | O5: 1 | P5: 1 | Q5: 3 | R5: 5 | S5: 2 | T5: 100
B6: 4 | C6: г. Барнаул | D6: КГБУДО «Алтайский краевой дворец творчества детей и молодежи» | E6: 0 | F6: 1 | G6: 1 | H6: 0 | I6: 0 | J6: 2 | K6: 0 | L6: 0 | M6: 0 | N6: 1 | O6: 1 | P6: 1 | Q6: 3 | R6: 3 | S6: 2 | T6: 100
B7: 5 | C7: г. Барнаул | D7: КГБУДО «Алтайский краевой детский экологический центр» | E7: 1 | F7: 1 | G7: 1 | H7: 1 | I7: 1 | J7: 5 | K7: 1 | L7: 1 | M7: 1 | N7: 1 | O7: 1 | P7: 1 | Q7: 3 | R7: 6 | S7: 1 | T7: 100
B8: 6 | C8: г. Барнаул | D8: КГБУДО «Алтайский краевой центр детского отдыха, туризма и краеведения «Алтай» | E8: 1 | F8: 1 | G8: 1 | H8: 0 | I8: 1 | J8: 4 | K8: 1 | L8: 1 | M8: 0 | N8: 1 | O8: 1 | P8: 1 | Q8: 3 | R8: 5 | S8: 1 | T8: 100
B9: 7 | C9: г. Барнаул | D9: КГБУДО «Детский технопарк Алтайского края «Кванториум.22» | E9: 1 | F9: 1 | G9: 1 | H9: 0 | I9: 1 | J9: 4 | K9: 1 | L9: 1 | M9: 1 | N9: 1 | O9: 1 | P9: 1 | Q9: 3 | R9: 6 | T9: 100
B10: 8 | C10: г. Барнаул | D10: МБУДО «Барнаульский городской детско-юношеский центр» | E10: 1 | F10: 0 | G10: 0 | H10: 0 | I10: 0 | J10: 1 | K10: 0 | L10: 0 | M10: 0 | N10: 1 | O10: 0 | P10: 1 | Q10: 2 | R10: 2 | S10: 2 | T10: 60
B11: 9 | C11: г. Барнаул | D11: МБУДО «Барнаульская городская станция юных натуралистов» | E11: 0 | F11: 0 | G11: 0 | H11: 0 | I11: 0 | J11: 0 | K11: 0 | L11: 0 | M11: 0 | N11: 1 | O11: 1 | P11: 1 | Q11: 3 | R11: 3 | S11: 1 | T11: 60
B12: 10 | C12: г. Барнаул | D12: МБУДО «Барнаульская городская станция юных техников» | E12: 0 | F12: 0 | G12: 0 | H12: 0 | I12: 0 | J12: 0 | K12: 0 | L12: 0 | M12: 0 | N12: 1 | O12: 1 | P12: 0 | Q12: 2 | R12: 2 | S12: 1 | T12: 40
B13: 11 | C13: г. Барнаул | D13: МБУДО «Детский оздоровительно-образовательный (профильный) центр Гармония» | E13: 1 | F13: 1 | G13: 0 | H13: 0 | I13: 0 | J13: 2 | K13: 0 | L13: 0 | M13: 0 | N13: 1 | O13: 0 | P13: 0 | Q13: 1 | R13: 1 | S13: 1 | T13: 20
B14: 12 | C14: г. Барнаул | D14: МБУДО «Дом художественного творчества детей» (г. Барнаул) | E14: 0 | F14: 0 | G14: 0 | H14: 0 | I14: 1 | J14: 1 | K14: 0 | L14: 0 | M14: 0 | N14: 1 | O14: 0 | P14: 1 | Q14: 2 | R14: 2 | S14: 2 | T14: 60
B15: 13 | C15: г. Барнаул | D15: МБУДО «Детско-юношеский центр» Индустриального района г. Барнау | E15: 1 | F15: 0 | G15: 0 | H15: 0 | I15: 0 | J15: 1 | K15: 0 | L15: 0 | M15: 0 | N15: 1 | O15: 0 | P15: 0 | Q15: 1 | R15: 1 | S15: 1 | T15: 20
B16: 14 | C16: г. Барнаул | D16: МБУДО «Центр детского (юношеского) технического творчества» Лени | E16: 0 | F16: 0 | G16: 0 | H16: 0 | I16: 1 | J16: 1 | K16: 0 | L16: 0 | M16: 0 | N16: 1 | O16: 0 | P16: 1 | Q16: 2 | R16: 2 | S16: 1 | T16: 40
B17: 15 | C17: г. Барнаул | D17: МБУДО «Центр детского творчества №2» г. Барнаула | E17: 1 | F17: 1 | G17: 1 | H17: 0 | I17: 0 | J17: 3 | K17: 1 | L17: 0 | M17: 0 | N17: 1 | O17: 0 | P17: 1 | Q17: 2 | R17: 3 | S17: 1 | T17: 60
B18: 16 | C18: г. Барнаул | D18: МБУДО «Центр детского творчества» Центрального района г. Барнаула | E18: 0 | F18: 0 | G18: 1 | H18: 0 | I18: 1 | J18: 2 | K18: 0 | L18: 0 | M18: 0 | N18: 1 | O18: 1 | P18: 1 | Q18: 3 | R18: 3 | S18: 1 | T18: 60
B19: 17 | C19: г. Барнаул | D19: МБУДО «Центр развития творчества детей и юношества» Индустриаль | E19: 0 | F19: 0 | G19: 0 | H19: 0 | I19: 0 | J19: 0 | K19: 0 | L19: 0 | M19: 0 | N19: 1 | O19: 1 | P19: 1 | Q19: 3 | R19: 3 | S19: 1 | T19: 60
B20: 18 | C20: г. Барнаул | D20: МБУДО «Центр развития творчества детей и молодежи» Железнодорож | E20: 1 | F20: 0 | G20: 0 | H20: 0 | I20: 0 | J20: 1 | K20: 0 | L20: 0 | M20: 0 | N20: 1 | O20: 0 | P20: 1 | Q20: 2 | R20: 2 | S20: 2 | T20: 60
B21: 19 | C21: г. Барнаул | D21: МБУДО «Центр физкультурно-спортивной направленности «Акцент» | E21: 0 | F21: 1 | G21: 0 | H21: 0 | I21: 0 | J21: 1 | K21: 0 | L21: 0 | M21: 0 | N21: 0 | O21: 0 | P21: 0 | Q21: 0 | R21: 0 | S21: 2 | T21: 0
B22: 20 | C22: г. Барнаул | D22: МБУДО Городской психолого-педагогический центр «Потенциал» | E22: 1 | F22: 0 | G22: 1 | H22: 1 | I22: 1 | J22: 4 | K22: 0 | L22: 0 | M22: 0 | N22: 1 | O22: 1 | P22: 1 | Q22: 3 | R22: 3 | S22: 1 | T22: 60
B23: 21 | C23: г. Барнаул | D23: МБУДО Детский оздоровительно-образовательный (профильный) центр «Валеологический центр» | E23: 1 | F23: 1 | G23: 1 | H23: 0 | I23: 1 | J23: 4 | K23: 1 | L23: 1 | M23: 1 | N23: 1 | O23: 1 | P23: 1 | Q23: 3 | R23: 6 | S23: 2 | T23: 100
B24: 22 | C24: г. Барнаул | D24: МБУДО «Детская школа искусств «Традиция» с. Власиха г. Барнаула | E24: 1 | F24: 1 | G24: 1 | H24: 0 | I24: 1 | J24: 4 | K24: 0 | L24: 0 | M24: 0 | N24: 1 | O24: 1 | P24: 1 | Q24: 3 | R24: 3 | S24: 1 | T24: 60
B25: 23 | C25: г. Барнаул | D25: МБУДО Центр внешкольной работы «Военно-спортивный клуб «Борец» | E25: 0 | F25: 0 | G25: 0 | H25: 0 | I25: 0 | J25: 0 | K25: 0 | L25: 0 | M25: 0 | N25: 1 | O25: 1 | P25: 0 | Q25: 2 | R25: 2 | S25: 2 | T25: 60
B26: 24 | C26: г. Барнаул | D26: МБУДО «Центр эстетического воспитания «Песнохорки» | E26: 1 | F26: 0 | G26: 0 | H26: 0 | I26: 0 | J26: 1 | K26: 0 | L26: 0 | M26: 0 | N26: 1 | O26: 1 | P26: 1 | Q26: 3 | R26: 3 | S26: 1 | T26: 60
B27: 25 | C27: г. Барнаул | D27: МБУДО «Центр дополнительного образования детей «Память» Пост №1 г. Барнаула» | E27: 0 | F27: 0 | G27: 0 | H27: 0 | I27: 0 | J27: 0 | K27: 0 | L27: 0 | M27: 0 | N27: 1 | O27: 0 | P27: 0 | Q27: 1 | R27: 1 | S27: 1 | T27: 20
B28: 26 | C28: г. Барнаул | D28: МБУДО «Центр детского творчества» Октябрьского района г. Барнаула | E28: 0 | F28: 0 | G28: 0 | H28: 0 | I28: 0 | J28: 0 | K28: 0 | L28: 0 | M28: 0 | N28: 1 | O28: 0 | P28: 1 | Q28: 2 | R28: 2 | S28: 1 | T28: 40
B29: 27 | C29: г. Барнаул | D29: МБУДО «Центр развития творчества детей и юношества» Ленинского района г. Барнаула | E29: 0 | F29: 1 | G29: 0 | H29: 0 | I29: 0 | J29: 1 | K29: 0 | L29: 0 | M29: 0 | N29: 1 | O29: 1 | P29: 1 | Q29: 3 | R29: 3 | S29: 1 | T29: 60
B30: 28 | C30: г. Белокуриха | D30: МБУДО «Детско-юношеская спортивная школа» г. Белокурихи | E30: 0 | F30: 0 | G30: 0 | H30: 0 | I30: 0 | J30: 0 | K30: 0 | L30: 0 | M30: 0 | N30: 0 | O30: 0 | P30: 0 | Q30: 0 | R30: 0 | S30: 2 | T30: 0
B31: 29 | C31: г. Белокуриха | D31: МБУДО «Центр эстетического воспитания» г. Белокурихи | E31: 1 | F31: 1 | G31: 1 | H31: 0 | I31: 0 | J31: 3 | K31: 0 | L31: 1 | M31: 0 | N31: 1 | O31: 1 | P31: 1 | Q31: 3 | R31: 4 | S31: 1 | T31: 80
B32: 30 | C32: г. Бийск | D32: МБУДО «Детский эколого-туристический центр» г. Бийска | E32: 1 | F32: 1 | G32: 1 | H32: 0 | I32: 0 | J32: 3 | K32: 0 | L32: 0 | M32: 0 | N32: 1 | O32: 1 | P32: 1 | Q32: 3 | R32: 3 | S32: 1 | T32: 60
B33: 31 | C33: г. Бийск | D33: МБУДО «Дом детского творчества» г. Бийска | E33: 0 | F33: 0 | G33: 0 | H33: 0 | I33: 0 | J33: 0 | K33: 0 | L33: 0 | M33: 0 | N33: 1 | O33: 1 | P33: 1 | Q33: 3 | R33: 3 | S33: 1 | T33: 60
B34: 47 | C34: Красногорский район | D34: МКУДО «Дом детского творчества» Красногорского района | E34: 0 | F34: 0 | G34: 0 | H34: 0 | I34: 0 | J34: 0 | K34: 0 | L34: 0 | M34: 0 | N34: 0 | O34: 0 | P34: 0 | Q34: 0 | R34: 0 | S34: 2 | T34: 0

Sheet 3УслДостИнвОц
D1: Показатель 3.1 | G1: Показатель 3.2 | J1: Показатель 3.3
B2: № | C2: ДО | D2: Количество условий доступности образовательной организации для инвалидов | E2: Значение показателя 3.1 | F2: Значение показателя 3.1 с учетом значимости | G2: Количество условий доступности, позволяющих инвалидам получать услуги наравне с другими | H2: Значение показателя 3.2 | I2: Значение показателя 3.2 с учетом значимости | J2: Число получателей услуг-инвалидов, удовлетворенных доступностью услуг | K2: Число получателей услуг-инвалидов, опрошенных по данному вопросу | L2: Значение показателя 3.3 | M2: Значение показателя 3.3 с учетом значимости | N2: Итого по критерию:
E3: 100 | F3: =E3*0.3 -> 30 | H3: 100 | I3: =H3*0.4 -> 40 | L3: 100 | M3: =L3*0.3 -> 30 | N3: =F3+I3+M3 -> 100
A4: 47 | B4: Красногорский район | C4: МКУДО «Дом детского творчества» Красногорского района | D4: 0 | E4: =IF(D4<=4,D4*20,100) -> 0 | F4: =E4*0.3 -> 0 | G4: 0 | H4: 0 | I4: =H4*0.4 -> 0 | J4: 3 | K4: 3 | L4: =J4/K4*100 -> 100 | M4: =L4*0.3 -> 30 | N4: =F4+I4+M4 -> 30 | P4: =J4-K4 -> 0

Sheet 4ДобрВежл
A1: № | B1: Тип образовательной организации | C1: МО | D1: Наименование образовательной организации | E1: Показатель 4.1 Доля получателей услуг, удовлетворенных доброжелательностью, вежливостью работников организации социальной сферы | I1: Показатель 4.2 Доля получателей услуг, удовлетворенных доброжелательностью, вежливостью работников организации социальной сферы, обеспечивающих непосредственное оказание услуги | M1: Показатель 4.3 Доля получателей услуг, удовлетворенных доброжелательностью, вежливостью работников организации социальной сферы при использовании дистанционных форм взаимодействия | Q1: Итого по критерию:
E2: Число получателей услуг, удовлетворенных доброжелательностью, вежливостью работников организации социальной сферы, обеспечивающих первичный контакт и информирование получателя услуги | F2: Число опрошенных получателей услуг, ответивших на соответствующий вопрос анкеты | G2: Значение показателя 4.1 | H2: Значение показателя 4.1 с учетом значимости | I2: Число получателей услуг, удовлетворенных доброжелательностью, вежливостью работников организации социальной сферы, обеспечивающих непосредственное оказание услуги | J2: Число опрошенных получателей услуг, ответивших на соответствующий вопрос анкеты | K2: Значение показателя 4.2 | L2: Значение показателя 4.2 с учетом значимости | M2: Число получателей услуг, удовлетворенных доброжелательностью, вежливостью работников организации социальной сферы при использовании дистанционных форм взаимодействия | N2: Число опрошенных получателей услуг, ответивших на соответствующий вопрос анкеты | O2: Значение показателя 4.3 | P2: Значение показателя 4.3 с учетом значимости
G3: 100 | H3: =G3*0.4 -> 40 | K3: 100 | L3: =K3*0.4 -> 40 | O3: 100 | P3: =O3*0.2 -> 20 | Q3: =H3+L3+P3 -> 100
B4: 47 | C4: Красногорский район | D4: МКУДО «Дом детского творчества» Красногорского района | E4: 75 | F4: 78 | G4: =E4/F4*100 -> 96.15384615 | H4: =G4*0.4 -> 38.46153846 | I4: 75 | J4: 78 | K4: =I4/J4*100 -> 96.15384615 | L4: =K4*0.4 -> 38.46153846 | M4: 72 | N4: 77 | O4: =M4/N4*100 -> 93.50649351 | P4: =O4*0.2 -> 18.7012987 | Q4: =H4+L4+P4 -> 95.62437562

Sheet 5УдовлУсл
A1: № | B1: Тип образовательной организации | C1: МО | D1: Наименование образовательной организации | E1: Показатель 5.1 Доля получателей услуг, которые готовы рекомендовать организацию социальной сферы родственникам и знакомым | I1: Показатель 5.2 Доля получателей услуг, удовлетворенных организационными условиями предоставления услуг | M1: Показатель 5.3 Доля получателей услуг, удовлетворенных в целом условиями оказания услуг в организации | Q1: Итого по критерию:
E2: Число получателей услуг, которые готовы рекомендовать организацию родственникам и знакомым | F2: Число опрошенных получателей услуг, ответивших на соответствующий вопрос анкеты | G2: Значение показателя 5.1 | H2: Значение показателя 5.1 с учетом значимости | I2: Число получателей услуг, удовлетворенных организационными условиями предоставления услуг | J2: Число опрошенных получателей услуг, ответивших на соответствующий вопрос анкеты | K2: Значение показателя 5.2 | L2: Значение показателя 5.2 с учетом значимости | M2: Число получателей услуг, удовлетворенных в целом условиями оказания услуг в организации социальной сферы | N2: Число опрошенных получателей услуг, ответивших на соответствующий вопрос анкеты | O2: Значение показателя 5.3 | P2: Значение показателя 5.3 с учетом значимости
G3: 100 | H3: =G3*0.3 -> 30 | K3: 100 | L3: =K3*0.2 -> 20 | O3: 100 | P3: =O3*0.5 -> 50 | Q3: =H3+L3+P3 -> 100
B4: 47 | C4: Красногорский район | D4: МКУДО «Дом детского творчества» Красногорского района | E4: 72 | F4: 77 | G4: =E4/F4*100 -> 93.50649351 | H4: =G4*0.3 -> 28.05194805 | I4: 73 | J4: 78 | K4: =I4/J4*100 -> 93.58974359 | L4: =K4*0.2 -> 18.71794872 | M4: 76 | N4: 78 | O4: =M4/N4*100 -> 97.43589744 | P4: =O4*0.5 -> 48.71794872 | Q4: =H4+L4+P4 -> 95.48784549

Sheet Интегр
A1: Место в рейтинге | B1: Муниципальное образование | C1: Наименование образовательной организации | D1: Интегральное значение показателя | E1: 1 - Показатели, характеризующие откртость и доступность информации об организации | I1: 2 - Показатели, характеризующие комфортность условий предоставления услуг | L1: 3 - Показатели, характеризующие доступность услуг для инвалидов | P1: 4 - Показатели, характеризующие доброжелательность, вежливость работников организации | T1: 5 - Показатели, характеризующие удовлетворенность условиями оказания услуг
E2: 1.1 | F2: 1.2 | G2: 1.3 | H2: К1 | I2: 2.1 | J2: 2.3 | K2: К2 | L2: 3.1 | M2: 3.2 | N2: 3.3 | O2: К3 | P2: 4.1 | Q2: 4.2 | R2: 4.3 | S2: К4 | T2: 5.1 | U2: 5.2 | V2: 5.3 | W2: К5
E3: 30 | F3: 30 | G3: 40 | H3: 100 | I3: 50 | J3: 50 | K3: 100 | L3: 30 | M3: 40 | N3: 30 | O3: 100 | P3: 40 | Q3: 40 | R3: 20 | S3: 100 | T3: 30 | U3: 20 | V3: 50 | W3: 100
A4: 92 | B4: Красногорский район | C4: МКУДО «Дом детского творчества» Красногорского района | D4: =AVERAGE(H4,K4,O4,S4,W4) -> 82.27349515 | E4: ='1ОиДинфоб'!G51 -> 25 | F4: ='1ОиДинфоб'!J51 -> 30 | G4: ='1ОиДинфоб'!P51 -> 35.90460526 | H4: =E4+F4+G4 -> 90.90460526 | I4: ='2КомУслОц'!F5 -> 50 | J4: ='2КомУслОц'!J5 -> 49.35064935 | K4: =I4+J4 -> 99.35064935 | L4: ='3УслДостИнвОц'!F4 -> 0 | M4: ='3УслДостИнвОц'!I4 -> 0 | N4: ='3УслДостИнвОц'!M4 -> 30 | O4: =L4+M4+N4 -> 30 | P4: ='4ДобрВежл'!H4 -> 38.46153846 | Q4: ='4ДобрВежл'!L4 -> 38.46153846 | R4: ='4ДобрВежл'!P4 -> 18.7012987 | S4: =SUM(P4:R4) -> 95.62437562 | T4: ='5УдовлУсл'!H4 -> 28.05194805 | U4: ='5УдовлУсл'!L4 -> 18.71794872 | V4: ='5УдовлУсл'!P4 -> 48.71794872 | W4: =SUM(T4:V4) -> 95.48784549
A7: Муниципальное образование | B7: Наименование образовательной организации | C7: Интегральное значение показателя
D8: К1 | E8: К2 | F8: К3 | G8: К4 | H8: К5
A9: Красногорский район | B9: МКУДО «Дом детского творчества» Красногорского района | C9: 82.27349515 | D9: 90.90460526 | E9: 99.35064935 | F9: 30 | G9: 95.62437562 | H9: 95.48784549
